{"text_format":"1","workbook":"xlsx","n_sheets":4,"sheets":["Ripristini","Z-2","F6","X-A"],"not_rendered":{"charts":2,"images":0,"macros":1,"external_links":0,"defined_names":2,"comments":2,"pivot_tables":0},"unopened":[],"bounds":{"document_bytes":16777216,"sheet_cells":100000,"rows_first":2000,"rows_last":500,"rows_between":2000,"halvings":0,"cell_chars":16384,"cell_head_chars":4096},"cells_cut":0,"cells_raw":0,"read":"whole","date_system":"1900"}

{"sheet":"Ripristini","index":0,"n_rows":156,"n_cols":185,"rows_kept":156,"cut":false,"hidden":false,"merged":[[2,1,2,2],[111,1,111,2],[112,1,115,2],[116,1,121,2],[122,1,125,2],[14,1,89,1],[14,2,42,2],[43,2,78,2],[79,2,89,2],[90,1,110,1],[90,2,110,2],[4,1,13,1],[4,2,6,2],[7,2,9,2],[10,2,12,2]]}
[1,"PRESTAZIONI",null,null,"Categoria «ID-Opere»",null,null,null,null,"E","SA","SB","IA","IB","V","D","T","P",null,{"$f":"T127","v":20},{"$f":"U127","v":21},22,23,24,25,26,27,28,29,30,31,32,33,34,35,36,37,38,39,40,41,42,43,44,45,46,47,48,49,50,51,52,53,54,55,56,57,58,59,60,61,62,63,64,65,66,67,68,69,70,71,null,null,null,null,null,null,null,null,null,null,null,null,null,null,null,null,null,null,null,null,null,null,null,null,null,null,null,null,null,null,null,null,null,null,null,null,null,null,null,null,null,null,null,null,null,null,null,null,null,null,null,null,null,null,null,null,null,null,null,null,null,null,null,null,null,null,null,null,null,null,null,null,null,null,null,null,null,null,null,null,null,null,null,null,null,null,null,null,null,null,null,null,null,null,null,null,null,null,null,null,null,null,null,null,null,null,null,null,null,null,null,null,25,25]
[2,"(Tavola Z-2)",null,null,"Grado di complessità «G»"]
[3,"Fasi prestazionali",null,null,"Importo dei lavori «V»",null,null,null,null,null,null,null,null,null,null,null,null,null,null,null,null,null,null,null,null,null,null,null,null,null,null,null,null,null,null,null,null,null,null,null,null,null,null,null,null,null,null,null,null,null,null,null,null,null,null,null,null,null,null,null,null,null,null,null,null,null,null,null,null,null,null,null,null,null,null,null,null,null,null,null,null,null,null,null,null,null,null,null,null,null,null,null,null,null,null,null,null,null,null,null,null,null,null,null,null,null,null,null,null,null,null,null,null,null,null,null,null,null,null,null,null,null,null,null,null,null,null,null,null,null,null,null,null,null,null,null,null,null,null,null,null,null,null,null,null,null,null,null,null,null,null,null,null,null,null,null,null,null,null,null,null,null,null,null,null,null,null,null,null,null,null,null,null,null,null,null,null,null,null,null,null,null,null,null,0]
[4,null,"Sottofasi","«Q»","Parametro «P» = se(V=0;0;se(V<=25000;(0,03 + 10/25000^ 0,4);0,03 + 10/V^0,4) x 100",null,null,null,null,null,null,null,null,null,null,null,null,null,null,null,null,null,null,null,null,null,null,null,null,null,null,null,null,null,null,null,null,null,null,null,null,null,null,null,null,null,null,null,null,null,null,null,null,null,null,null,null,null,null,null,null,null,null,null,null,null,null,null,null,null,null,null,null,null,null,null,null,null,null,null,null,null,null,null,null,null,null,null,null,null,null,null,null,null,null,null,null,null,null,null,null,null,null,null,null,null,null,null,null,null,null,null,null,null,null,null,null,null,null,null,null,null,null,null,null,null,null,null,null,null,null,null,null,null,null,null,null,null,null,null,null,null,null,null,null,null,null,null,null,null,null,null,null,null,null,null,null,null,null,null,null,null,null,null,null,null,null,null,null,null,null,null,null,null,null,null,null,null,null,null,null,null,null,null,5.8004590577996824]
[5,"a) Attività propedeutiche alla Progettazione (AP)     ","a.I) Studi di fattibilità","Qa.I.01","Relazione illustrativa (art. 14, comma 1, d.P.R. 207/2010)",null,null,null,null,4.4999999999999998E-2,4.4999999999999998E-2,4.4999999999999998E-2,4.4999999999999998E-2,4.4999999999999998E-2,0.04,3.5000000000000003E-2,0.05,0.04,null,null,null,null,null,null,null,null,null,null,null,null,null,null,null,null,null,null,null,null,null,null,null,null,null,null,null,null,null,null,null,null,null,null,null,null,null,null,null,null,null,null,null,null,null,null,null,null,null,null,null,null,null,null,null,null,null,null,null,null,null,null,null,null,null,null,null,null,null,null,null,null,null,null,null,null,null,null,null,null,null,null,null,null,null,null,null,null,null,null,null,null,null,null,null,null,null,null,null,null,null,null,null,null,null,null,null,null,null,null,null,null,null,null,null,null,null,null,null,null,null,null,null,null,null,null,null,null,null,null,null,null,null,null,null,null,null,null,null,null,null,null,null,null,null,null,null,null,null,null,null,null,null,null,null,null,null,null,null,null,null,null,null,null,null,null,10]
[6,null,null,"Qa.I.02","Relazione illustrativa, elaborati progettuali e tecnico economici ",null,null,null,null,0.09,0.09,0.09,0.09,0.09,0.08,7.0000000000000007E-2,0.1,0.08,null,null,null,null,null,null,null,null,null,null,null,null,null,null,null,null,null,null,null,null,null,null,null,null,null,null,null,null,null,null,null,null,null,null,null,null,null,null,null,null,null,null,null,null,null,null,null,null,null,null,null,null,null,null,null,null,null,null,null,null,null,null,null,null,null,null,null,null,null,null,null,null,null,null,null,null,null,null,null,null,null,null,null,null,null,null,null,null,null,null,null,null,null,null,null,null,null,null,null,null,null,null,null,null,null,null,null,null,null,null,null,null,null,null,null,null,null,null,null,null,null,null,null,null,null,null,null,null,null,null,null,null,null,null,null,null,null,null,null,null,null,null,null,null,null,null,null,null,null,null,null,null,null,null,null,null,null,null,null,null,null,null,null,null,null,null,72]
[7,null,null,"Qa.I.03","Supporto al RUP: accertamenti e verifiche preliminari ",null,null,null,null,0.02,0.02,0.02,0.02,0.02,0.02,0.02,0.02,0.02]
[8,null,"a.II) Stime e valutazioni","Qa.II.01","Sintetiche, basate su elementi sintetici e globali, vani, metri cubi, etc.",null,null,null,null,0.04,0.04,0.04,0.04,0.04,0.04,0.04,0.04,0.04]
[9,null,null,"Qa.II.02","Particolareggiate, complete di criteri di valutazione, relazione motivata, descrizioni, computi e tipi",null,null,null,null,0.08,0.08,0.08,0.08,0.08,0.08,0.08,0.08,0.08]
[10,null,null,"Qa.II.03","Analitiche, integrate con specifiche e distinte, sullo stato e valore dei singoli componenti",null,null,null,null,0.16,0.16,0.16,0.16,0.16,0.16,0.16,0.16,0.16]
[11,null,"a.III) Rilievi, studi e analisi","Qa.III.01","Rilievi, studi e classificazioni agronomiche, colturali, delle biomasse e delle attività produttive ",null,null,null,null,0,0,0,0,0,0,0,0,0.02]
[12,null,null,"Qa.III.02","Rilievo botanico e analisi vegetazionali dei popolamenti erbacei ed arborei ed animali",null,null,null,null,0,0,0,0,0,0,0,0,1.4999999999999999E-2]
[13,null,null,"Qa.III.03","Elaborazioni, analisi e valutazioni con modelli numerici, software dedicati",null,null,null,null,0,0,0,0,0,0,0,0,2.5000000000000001E-2]
[14,null,"a.IV)  Piani economici","Qa.IV.01","Piani economici, aziendali, business plan e di investimento (Reg. CE 1698/2005)",null,null,null,null,0,0,0,0,0,0,0,0,5.0000000000000001E-3]
[15,"PROGETTAZIONE","b.I) \nProgettazione di fattibilità \n(PF)     ","Qb.I.01","Relazioni, planimetrie, elaborati grafici ",null,null,null,null,0.09,0.09,0.09,0.09,0.09,0.08,7.0000000000000007E-2,0.1,0.08]
[16,null,null,"Qb.I.02","Calcolo sommario spesa, quadro economico di progetto",null,null,null,null,0.01,0.01,0.01,0.01,0.01,0.01,0.01,0.01,0.01]
[17,null,null,"Qb.I.03","Piano particellare preliminare delle aree o rilievo di massima degli immobili ",null,null,null,null,0.02,0.02,0.02,0.02,0.02,0.02,0.02,0,0.02]
[18,null,null,"Qb.I.04","Piano economico e finanziario di massima (art. 17, comma 4, d.P.R. 207/2010)",null,null,null,null,0.03,0.03,0.03,0.03,0.03,0.03,0.03,0.03,0.03]
[19,null,null,"Qb.I.05","Capitolato speciale descrittivo e prestazionale, schema di contratto ",null,null,null,null,7.0000000000000007E-2,7.0000000000000007E-2,7.0000000000000007E-2,7.0000000000000007E-2,7.0000000000000007E-2,7.0000000000000007E-2,7.0000000000000007E-2,7.0000000000000007E-2,7.0000000000000007E-2]
[20,null,null,"Qb.I.06","Relazione geotecnica (art.19, comma 1, d.P.R. 207/2010)",null,null,null,null,0.03,0.03,0.03,0.03,0.03,0.03,0.03,0,0.03]
[21,null,null,"Qb.I.07","Relazione idrologica (art. 19, comma 1, d.P.R. 207/2010)",null,null,null,null,1.4999999999999999E-2,1.4999999999999999E-2,1.4999999999999999E-2,1.4999999999999999E-2,1.4999999999999999E-2,1.4999999999999999E-2,1.4999999999999999E-2,0,1.4999999999999999E-2]
[22,null,null,"Qb.I.08","Relazione idraulica (art. 19, comma 1, d.P.R. 207/2010)",null,null,null,null,1.4999999999999999E-2,1.4999999999999999E-2,1.4999999999999999E-2,1.4999999999999999E-2,1.4999999999999999E-2,1.4999999999999999E-2,1.4999999999999999E-2,0,1.4999999999999999E-2]
[23,null,null,"Qb.I.09","Relazione sismica e sulle strutture (art. 19, comma 1, d.P.R. 207/2010)",null,null,null,null,1.4999999999999999E-2,1.4999999999999999E-2,1.4999999999999999E-2,1.4999999999999999E-2,1.4999999999999999E-2,1.4999999999999999E-2,1.4999999999999999E-2,0,1.4999999999999999E-2]
[24,null,null,"Qb.I.10","Relazione archeologica (art. 19, comma 1, d.P.R. 207/2010)",null,null,null,null,1.4999999999999999E-2,1.4999999999999999E-2,1.4999999999999999E-2,1.4999999999999999E-2,1.4999999999999999E-2,1.4999999999999999E-2,1.4999999999999999E-2,0,1.4999999999999999E-2]
[25,null,null,"Qb.I.11","Relazione geologica ",null,250,null,142,3.9E-2,3.9E-2,5.2999999999999999E-2,3.9E-2,3.9E-2,6.8000000000000005E-2,5.2999999999999999E-2,0,5.2999999999999999E-2]
[26,null,null,null,null,null,500,null,null,0.01,0.01,4.8000000000000001E-2,0.01,0.01,5.8000000000000003E-2,4.8000000000000001E-2,0,4.8000000000000001E-2]
[27,null,null,null,null,null,1000,null,null,1.2999999999999999E-2,1.2999999999999999E-2,4.3999999999999997E-2,1.2999999999999999E-2,1.2999999999999999E-2,4.7E-2,4.3999999999999997E-2,0,4.3999999999999997E-2]
[28,null,null,null,null,null,2500,null,null,1.7999999999999999E-2,1.7999999999999999E-2,4.2000000000000003E-2,1.7999999999999999E-2,1.7999999999999999E-2,3.4000000000000002E-2,4.2000000000000003E-2,0,4.2000000000000003E-2]
[29,null,null,null,null,null,10000,null,null,2.1999999999999999E-2,2.1999999999999999E-2,2.7E-2,2.1999999999999999E-2,2.1999999999999999E-2,1.9E-2,2.7E-2,0,2.7E-2]
[30,null,null,null,null,null,null,null,null,2.1000000000000001E-2,2.1000000000000001E-2,2.5000000000000001E-2,2.1000000000000001E-2,2.1000000000000001E-2,1.7999999999999999E-2,2.5000000000000001E-2,0,2.5000000000000001E-2]
[31,null,null,"Qb.I.12","Progettazione integrale e coordinata - Integrazione delle prestazioni specialistiche ",null,null,null,null,0.02,0.02,0.02,0.02,3.9E-2,0.02,0.02,0.02,0.02]
[32,null,null,"Qb.I.13","Studio di inserimento urbanistico",null,null,null,null,0.03,0.03,0.03,0.01,0.01,0.03,0.01,0,0.03]
[33,null,null,"Qb.I.14","Relazione tecnica sullo stato di consistenza degli immobili da ristrutturare ",null,null,null,null,0.03,0.03,0.03,0.03,0.03,0,0,0,0]
[34,null,null,"Qb.I.15","Prime indicazioni di progettazione antincendio (d.m. 6/02/1982)",null,null,null,null,5.0000000000000001E-3,5.0000000000000001E-3,5.0000000000000001E-3,5.0000000000000001E-3,5.0000000000000001E-3,0,0,0,0]
[35,null,null,"Qb.I.16","Prime indicazioni e prescrizioni per la stesura dei Piani di Sicurezza (art. 17, comma 1, lettera f), d.P.R. 207/2010)",null,null,null,null,0.01,0.01,0.01,0.01,0.01,0.01,0.01,0.01,0.01]
[36,null,null,"Qb.I.17","Studi di prefattibilità ambientale",null,5000,null,null,0.03,3.5000000000000003E-2,3.5000000000000003E-2,0.03,0.03,3.5000000000000003E-2,3.5000000000000003E-2,0.03,3.5000000000000003E-2]
[37,null,null,null,null,null,20000,null,null,1.4999999999999999E-2,0.02,0.02,1.4999999999999999E-2,1.4999999999999999E-2,0.02,0.02,1.4999999999999999E-2,0.02]
[38,null,null,null,null,null,null,null,null,5.0000000000000001E-3,8.0000000000000002E-3,8.0000000000000002E-3,0.05,0.05,8.0000000000000002E-3,8.0000000000000002E-3,5.0000000000000001E-3,8.0000000000000002E-3]
[39,null,null,"Qb.I.18","Piano di monitoraggio ambientale",null,5000,null,null,1.7999999999999999E-2,0.02,0.02,1.7999999999999999E-2,1.7999999999999999E-2,0.02,0.02,1.7999999999999999E-2,0.02]
[40,null,null,null,null,null,20000,null,null,8.0000000000000002E-3,0.01,0.01,8.0000000000000002E-3,8.0000000000000002E-3,0.01,0.01,8.0000000000000002E-3,0.01]
[41,null,null,null,null,null,null,null,null,4.0000000000000001E-3,5.0000000000000001E-3,5.0000000000000001E-3,0.04,0.04,5.0000000000000001E-3,5.0000000000000001E-3,4.0000000000000001E-3,5.0000000000000001E-3]
[42,null,null,"Qb.I.19","Supporto al RUP: supervisione e coordinamento progettazione preliminare ",null,null,null,null,0.01,0.01,0.01,0.01,0.01,0.01,0.01,0.01,0.01]
[43,null,null,"Qb.I.20","Supporto al RUP: per la Verifica della progettazione preliminare",null,null,null,null,0.06,0.06,0.06,0.06,0.06,0.06,0.06,0.06,0.06]
[44,null,"b.II) \nProgettazione definitiva \n(PD)","Qb.II.01","Relazioni generale e tecniche, Elaborati grafici, Calcolo strutture e impianti.  Relazione su risoluzione delle interferenze e Relazione su gestione materie ",null,null,null,null,0.23,0.18,0.18,0.16,0.2,0.22,0.18,0.25,0.18]
[45,null,null,"Qb.II.02","Rilievi dei manufatti (art. 243, comma 1, lettera c),  e art. 28, d.P.R. 207/2010)",null,null,null,null,0.04,0.04,0.04,0.04,0.04,0,0,0,0]
[46,null,null,"Qb.II.03","Disciplinare descrittivo e prestazionale (art. 24, co. 2, lett. g), d.P.R. 207/2010)",null,null,null,null,0.01,0.01,0.01,0.01,0.01,0.01,0.01,0.01,0.01]
[47,null,null,"Qb.II.04","Piano particellare d’esproprio (art. 24, comma 2, lettera i), d.P.R. 207/2010",null,null,null,null,0.04,0.04,0.04,0.04,0.04,0.04,0.04,0,0.04]
[48,null,null,"Qb.II.05","Elenco prezzi unitari ed eventuali analisi, Computo metrico estimativo, Quadro economico (art. 24, comma 2, lettere l), m), o), d.P.R. 207/2010)",null,null,null,null,7.0000000000000007E-2,0.04,0.04,7.0000000000000007E-2,7.0000000000000007E-2,0.06,0.05,0.05,0.05]
[49,null,null,"Qb.II.06","Studio di inserimento urbanistico (art. 24, comma 2, lettera c), d.P.R. 207/2010)",null,null,null,null,0.03,0.03,0.03,0.01,0.01,0.03,0.01,0,0.03,null,null,null,null,null,null,null,null,null,null,null,null,null,null,null,null,null,null,null,null,null,null,null,null,null,null,null,null,null,null,null,null,null,null,null,null,null,null,null,null,null,null,null,null,null,null,null,null,null,null,null,null,null,null,null,null,null,null,null,{"$f":"SUM(T49:BY49)","v":0},{"$f":"BZ49*BZ$138","v":0},{"$f":"BZ49+CA49","v":0}]
[50,null,null,"Qb.II.07","Rilievi planoaltimetrici (art. 24, comma 2, lettera c), d.P.R. 207/2010)",null,null,null,null,0.02,0.02,0.02,0.02,0.02,0.02,0.02,0.02,0.02,null,null,null,null,null,null,null,null,null,null,null,null,null,null,null,null,null,null,null,null,null,null,null,null,null,null,null,null,null,null,null,null,null,null,null,null,null,null,null,null,null,null,null,null,null,null,null,null,null,null,null,null,null,null,null,null,null,null,null,0,0,0]
[51,null,null,"Qb.II.08","Schema di contratto, Capitolato speciale d'appalto (art. 24, co. 3, d.P.R. 207/2010)",null,null,null,null,7.0000000000000007E-2,7.0000000000000007E-2,7.0000000000000007E-2,0.08,0.08,7.0000000000000007E-2,7.0000000000000007E-2,7.0000000000000007E-2,7.0000000000000007E-2,null,null,null,null,null,null,null,null,null,null,null,null,null,null,null,null,null,null,null,null,null,null,null,null,null,null,null,null,null,null,null,null,null,null,null,null,null,null,null,null,null,null,null,null,null,null,null,null,null,null,null,null,null,null,null,null,null,null,null,0,0,0]
[52,null,null,"Qb.II.09","Relazione geotecnica (art. 26, comma 1, d.P.R. 207/2010)",null,null,null,null,0.06,0.06,0.06,0.06,0.06,0.06,0.06,0,0.06,null,null,null,null,null,null,null,null,null,null,null,null,null,null,null,null,null,null,null,null,null,null,null,null,null,null,null,null,null,null,null,null,null,null,null,null,null,null,null,null,null,null,null,null,null,null,null,null,null,null,null,null,null,null,null,null,null,null,null,0,0,0]
[53,null,null,"Qb.II.10","Relazione idrologica (art. 26, comma 1, d.P.R. 207/2010)",null,null,null,null,0.03,0.03,0.03,0.03,0.03,0.03,0.03,0,0.03,null,null,null,null,null,null,null,null,null,null,null,null,null,null,null,null,null,null,null,null,null,null,null,null,null,null,null,null,null,null,null,null,null,null,null,null,null,null,null,null,null,null,null,null,null,null,null,null,null,null,null,null,null,null,null,null,null,null,null,0,0,0]
[54,null,null,"Qb.II.11","Relazione idraulica (art. 26, comma 1, d.P.R. 207/2010)",null,null,null,null,0.03,0.03,0.03,0.03,0.03,0.03,0.03,0,0.03,null,null,null,null,null,null,null,null,null,null,null,null,null,null,null,null,null,null,null,null,null,null,null,null,null,null,null,null,null,null,null,null,null,null,null,null,null,null,null,null,null,null,null,null,null,null,null,null,null,null,null,null,null,null,null,null,null,null,null,0,0,0]
[55,null,null,"Qb.II.12","Relazione sismica e sulle strutture (art.26 , comma 1, d.P.R. 207/10)",null,null,null,null,0.03,0.03,0.03,0.03,0.03,0.03,0.03,0,0.03,null,null,null,null,null,null,null,null,null,null,null,null,null,null,null,null,null,null,null,null,null,null,null,null,null,null,null,null,null,null,null,null,null,null,null,null,null,null,null,null,null,null,null,null,null,null,null,null,null,null,null,null,null,null,null,null,null,null,null,0,0,0]
[56,null,null,"Qb.II.13","Relazione geologica",null,250,null,143,6.4000000000000001E-2,6.4000000000000001E-2,0.13300000000000001,6.4000000000000001E-2,6.4000000000000001E-2,0.14499999999999999,0.13300000000000001,0,0.13300000000000001,null,null,null,null,null,null,null,null,null,null,null,null,null,null,null,null,null,null,null,null,null,null,null,null,null,null,null,null,null,null,null,null,null,null,null,null,null,null,null,null,null,null,null,null,null,null,null,null,null,null,null,null,null,null,null,null,null,null,null,0,0,0]
[57,null,null,null,null,null,500,null,null,1.9E-2,1.9E-2,0.107,1.9E-2,1.9E-2,0.114,0.107,0,0.107,null,null,null,null,null,null,null,null,null,null,null,null,null,null,null,null,null,null,null,null,null,null,null,null,null,null,null,null,null,null,null,null,null,null,null,null,null,null,null,null,null,null,null,null,null,null,null,null,null,null,null,null,null,null,null,null,null,null,null,0,0,0]
[58,null,null,null,null,null,1000,null,null,2.1000000000000001E-2,2.1000000000000001E-2,9.6000000000000002E-2,2.1000000000000001E-2,2.1000000000000001E-2,7.0000000000000007E-2,9.6000000000000002E-2,0,9.6000000000000002E-2,null,null,null,null,null,null,null,null,null,null,null,null,null,null,null,null,null,null,null,null,null,null,null,null,null,null,null,null,null,null,null,null,null,null,null,null,null,null,null,null,null,null,null,null,null,null,null,null,null,null,null,null,null,null,null,null,null,null,null,0,0,0]
[59,null,null,null,null,null,2500,null,null,2.9000000000000001E-2,2.9000000000000001E-2,7.9000000000000001E-2,2.9000000000000001E-2,2.9000000000000001E-2,3.5000000000000003E-2,7.9000000000000001E-2,0,7.9000000000000001E-2,null,null,null,null,null,null,null,null,null,null,null,null,null,null,null,null,null,null,null,null,null,null,null,null,null,null,null,null,null,null,null,null,null,null,null,null,null,null,null,null,null,null,null,null,null,null,null,null,null,null,null,null,null,null,null,null,null,null,null,0,0,0]
[60,null,null,null,null,null,10000,null,null,3.7999999999999999E-2,3.7999999999999999E-2,5.3999999999999999E-2,3.7999999999999999E-2,3.7999999999999999E-2,0.02,5.3999999999999999E-2,0,5.3999999999999999E-2,null,null,null,null,null,null,null,null,null,null,null,null,null,null,null,null,null,null,null,null,null,null,null,null,null,null,null,null,null,null,null,null,null,null,null,null,null,null,null,null,null,null,null,null,null,null,null,null,null,null,null,null,null,null,null,null,null,null,null,0,0,0]
[61,null,null,null,null,null,null,null,null,2.8000000000000001E-2,2.8000000000000001E-2,3.5000000000000003E-2,2.8000000000000001E-2,2.8000000000000001E-2,1.7999999999999999E-2,3.5000000000000003E-2,0,3.5000000000000003E-2,null,null,null,null,null,null,null,null,null,null,null,null,null,null,null,null,null,null,null,null,null,null,null,null,null,null,null,null,null,null,null,null,null,null,null,null,null,null,null,null,null,null,null,null,null,null,null,null,null,null,null,null,null,null,null,null,null,null,null,0,0,0]
[62,null,null,"Qb.II.14","Analisi storico critica e relazione sulle strutture esistenti ",null,null,null,null,0,0.09,0.09,0,0,0,0,0,0,null,null,null,null,null,null,null,null,null,null,null,null,null,null,null,null,null,null,null,null,null,null,null,null,null,null,null,null,null,null,null,null,null,null,null,null,null,null,null,null,null,null,null,null,null,null,null,null,null,null,null,null,null,null,null,null,null,null,null,0,0,0]
[63,null,null,"Qb.II.15","Relazione sulle indagini dei materiali e delle strutture per edifici esistenti ",null,null,null,null,0,0.12,0.12,0,0,0,0,0,0,null,null,null,null,null,null,null,null,null,null,null,null,null,null,null,null,null,null,null,null,null,null,null,null,null,null,null,null,null,null,null,null,null,null,null,null,null,null,null,null,null,null,null,null,null,null,null,null,null,null,null,null,null,null,null,null,null,null,null,0,0,0]
[64,null,null,"Qb.II.16","Verifica sismica delle strutture esistenti e individuazione delle carenze strutturali ",null,null,null,null,0,0.18,0.18,0,0,0,0,0,0,null,null,null,null,null,null,null,null,null,null,null,null,null,null,null,null,null,null,null,null,null,null,null,null,null,null,null,null,null,null,null,null,null,null,null,null,null,null,null,null,null,null,null,null,null,null,null,null,null,null,null,null,null,null,null,null,null,null,null,0,0,0]
[65,null,null,"Qb.II.17","Progettazione integrale e coordinata - Integrazione delle prestazioni specialistiche",null,null,null,null,0.05,0.05,0.05,0.05,0.05,0.05,0.05,0.05,0.05,null,null,null,null,null,null,null,null,null,null,null,null,null,null,null,null,null,null,null,null,null,null,null,null,null,null,null,null,null,null,null,null,null,null,null,null,null,null,null,null,null,null,null,null,null,null,null,null,null,null,null,null,null,null,null,null,null,null,null,0,0,0]
[66,null,null,"Qb.II.18","Elaborati di progettazione antincendio (d.m. 16/02/1982)",null,null,null,null,0.06,0.06,0.06,0.06,0.06,0,0,0,0,null,null,null,null,null,null,null,null,null,null,null,null,null,null,null,null,null,null,null,null,null,null,null,null,null,null,null,null,null,null,null,null,null,null,null,null,null,null,null,null,null,null,null,null,null,null,null,null,null,null,null,null,null,null,null,null,null,null,null,0,0,0]
[67,null,null,"Qb.II.19","Relazione paesaggistica (d.lgs. 42/2004)",null,null,null,null,0.02,0.02,0.02,0.02,0.02,0.02,0.02,0.02,0.02,null,null,null,null,null,null,null,null,null,null,null,null,null,null,null,null,null,null,null,null,null,null,null,null,null,null,null,null,null,null,null,null,null,null,null,null,null,null,null,null,null,null,null,null,null,null,null,null,null,null,null,null,null,null,null,null,null,null,null,0,0,0]
[68,null,null,"Qb.II.20","Elaborati e relazioni per requisiti acustici (legge 447/1995 - d.p.c.m. 512/1997)",null,null,null,null,0.02,0.02,0.02,0.02,0.02,0.02,0,0,0,null,null,null,null,null,null,null,null,null,null,null,null,null,null,null,null,null,null,null,null,null,null,null,null,null,null,null,null,null,null,null,null,null,null,null,null,null,null,null,null,null,null,null,null,null,null,null,null,null,null,null,null,null,null,null,null,null,null,null,0,0,0]
[69,null,null,"Qb.II.21","Relazione energetica (ex legge 10/1991 e s.m.i.)",null,null,null,null,0.03,0.03,0.03,0.03,0.03,0,0,0,0,null,null,null,null,null,null,null,null,null,null,null,null,null,null,null,null,null,null,null,null,null,null,null,null,null,null,null,null,null,null,null,null,null,null,null,null,null,null,null,null,null,null,null,null,null,null,null,null,null,null,null,null,null,null,null,null,null,null,null,{"$f":"SUM(T69:BY69)","v":0},0,{"$f":"BZ69+CA69","v":0}]
[70,null,null,"Qb.II.22","Diagnosi energetica (ex legge 10/1991) edifici esistenti, esclusi i rilievi e le indagini",null,null,null,null,0.02,0.02,0.02,0.02,0.02,0,0,0,0,null,null,null,null,null,null,null,null,null,null,null,null,null,null,null,null,null,null,null,null,null,null,null,null,null,null,null,null,null,null,null,null,null,null,null,null,null,null,null,null,null,null,null,null,null,null,null,null,null,null,null,null,null,null,null,null,null,null,null,0,0,0]
[71,null,null,"Qb.II.23","Aggiornamento delle prime indicazioni e prescrizioni per la redazione del PSC",null,null,null,null,0.01,0.01,0.01,0.01,0.01,0.01,0.01,0.01,0.01,null,null,null,null,null,null,null,null,null,null,null,null,null,null,null,null,null,null,null,null,null,null,null,null,null,null,null,null,null,null,null,null,null,null,null,null,null,null,null,null,null,null,null,null,null,null,null,null,null,null,null,null,null,null,null,null,null,null,null,0,0,0]
[72,null,null,"Qb.II.24","Studio impatto ambientale o fattibilità ambientale (VIA-VAS- AIA) ",null,5000,null,null,0.09,0.1,0.1,0.09,0.09,0.1,0.1,0.09,0.1,null,null,null,null,null,null,null,null,null,null,null,null,null,null,null,null,null,null,null,null,null,null,null,null,null,null,null,null,null,null,null,null,null,null,null,null,null,null,null,null,null,null,null,null,null,null,null,null,null,null,null,null,null,null,null,null,null,null,null,0,0,0]
[73,null,null,null,null,null,20000,null,null,4.4999999999999998E-2,0.06,0.06,4.4999999999999998E-2,4.4999999999999998E-2,0.06,0.06,4.4999999999999998E-2,0.06,null,null,null,null,null,null,null,null,null,null,null,null,null,null,null,null,null,null,null,null,null,null,null,null,null,null,null,null,null,null,null,null,null,null,null,null,null,null,null,null,null,null,null,null,null,null,null,null,null,null,null,null,null,null,null,null,null,null,null,0,0,0]
[74,null,null,null,null,null,null,null,null,1.4999999999999999E-2,2.5000000000000001E-2,2.5000000000000001E-2,1.4999999999999999E-2,1.4999999999999999E-2,2.5000000000000001E-2,2.5000000000000001E-2,1.4999999999999999E-2,2.5000000000000001E-2,null,null,null,null,null,null,null,null,null,null,null,null,null,null,null,null,null,null,null,null,null,null,null,null,null,null,null,null,null,null,null,null,null,null,null,null,null,null,null,null,null,null,null,null,null,null,null,null,null,null,null,null,null,null,null,null,null,null,null,0,0,0]
[75,null,null,"Qb.II.25","Piano di monitoraggio ambientale",null,5000,null,null,1.7999999999999999E-2,0.02,0.02,1.7999999999999999E-2,1.7999999999999999E-2,0.02,0.02,1.7999999999999999E-2,0.02,null,null,null,null,null,null,null,null,null,null,null,null,null,null,null,null,null,null,null,null,null,null,null,null,null,null,null,null,null,null,null,null,null,null,null,null,null,null,null,null,null,null,null,null,null,null,null,null,null,null,null,null,null,null,null,null,null,null,null,0,0,0]
[76,null,null,null,null,null,20000,null,null,8.0000000000000002E-3,0.01,0.01,8.0000000000000002E-3,8.0000000000000002E-3,0.01,0.01,8.0000000000000002E-3,0.01]
[77,null,null,null,null,null,null,null,null,4.0000000000000001E-3,5.0000000000000001E-3,5.0000000000000001E-3,4.0000000000000001E-3,4.0000000000000001E-3,5.0000000000000001E-3,5.0000000000000001E-3,4.0000000000000001E-3,5.0000000000000001E-3]
[78,null,null,"Qb.II.26","Supporto al RUP: supervisione e coordinamento progettazione definitiva",null,null,null,null,0.01,0.01,0.01,0.01,0.01,0.01,0.01,0.01,0.01]
[79,null,null,"Qb.II.27","Supporto al RUP: per la Verifica della progettazione definitiva ",null,null,null,null,0.13,0.13,0.13,0.13,0.13,0.13,0.13,0.13,0.13]
[80,null,"b.III) \nProgettazione esecutiva \n(PE)","Qb.III.01","Relazione generale e specialistiche, Elaborati grafici, Calcoli esecutivi (art. 33, comma 1, lettere a), b), c), d), d.P.R. 207/2010)",null,null,null,null,7.0000000000000007E-2,0.12,0.12,0.15,0.04,0.04,0.11,0.05,0.04]
[81,null,null,"Qb.III.02","Particolari costruttivi e decorativi (art. 36, comma 1, lettera c), d.P.R. 207/2010)",null,null,null,null,0.13,0.13,0.13,0.05,0.05,0.08,0.05,0.1,0.08]
[82,null,null,"Qb.III.03","Computo metrico estimativo, Quadro economico, Elenco prezzi, analisi, Quadro dell'incidenza percentuale della quantità di manodopera (art. 33, comma 1, lettere f), g), i), d.P.R. 207/2010)",null,null,null,null,0.04,0.03,0.03,0.05,0.05,0.03,0,0.03,0.03]
[83,null,null,"Qb.III.04","Schema di contratto, capitolato speciale d'appalto, cronoprogramma ",null,null,null,null,0.02,0.01,0.01,0.02,0.02,0.02,0.02,0.02,0.02]
[84,null,null,"Qb.III.05","Piano di manutenzione dell'opera (art. 33, comma 1, lettera e), d.P.R. 207/2010)",null,null,null,null,0.02,2.5000000000000001E-2,2.5000000000000001E-2,0.03,0.03,0.03,0.02,0.02,0.03]
[85,null,null,"Qb.III.06","Progettazione integrale e coordinata - Integrazione delle prestazioni specialistiche",null,null,null,null,0.03,0.03,0.03,0.03,0.03,0.03,0.03,0.03,0.03]
[86,null,null,"Qb.III.07","Piano di Sicurezza e Coordinamento (artt. 91 e 100 d.lgs. n. 81/2008)",null,null,null,146,0.1,0.1,0.1,0.1,0.1,0.1,0.1,0.1,0.1]
[87,null,null,"Qb.III.08","Supporto al RUP: supervisione e coordinamento progettazione esecutiva",null,null,null,null,0.01,0.01,0.01,0.01,0.01,0.01,0.01,0.01,0.01]
[88,null,null,"Qb.III.09","Supporto al RUP: per la Verifica della progettazione esecutiva",null,null,null,null,0.13,0.13,0.13,0.13,0.13,0.13,0.13,0.13,0.13]
[89,null,null,"Qb.III.10","Supporto al RUP: per la programmazione e progettazione appalto",null,null,null,null,0.04,0.04,0.04,0.04,0.04,0.04,0.04,0.04,0.04]
[90,null,null,"Qb.III.11","Supporto al RUP: per la Validazione del progetto",null,null,null,null,0.01,0.01,0.01,0.01,0.01,0.01,0.01,0.01,0.01]
[91,"DIREZIONE DELL'ESECUZIONE","c.I) \nDirezione dei lavori \n(DL)","Qc.I.01","Direzione lavori, assistenza collaudo, prove accettazione ",null,null,null,null,0.32,0.38,0.38,0.32,0.45,0.42,0.42,0.35,0.11]
[92,null,null,"Qc.I.02","Liquidazione Rendicontaz. liquidazione tecnico contabile",null,null,null,null,0.03,0.02,0.02,0.03,0.03,0.03,0.04,0.03,0.03]
[93,null,null,"Qc.I.03","Controllo aggiornamento elaborati di progetto, aggiornamento dei manuali d'uso e manutenzione (art. 148, comma 4, d.P.R. 207/2010)",null,null,null,null,0.02,0.02,0.02,0.02,0.02,0.02,0.02,0.02,0.02]
[94,null,null,"Qc.I.04","Coordinamento e supervisione dell'ufficio di direzione lavori",null,null,null,null,0.02,0.02,0.02,0.02,0.02,0.02,0.02,0.02,0.02]
[95,null,null,"Qc.I.05","Ufficio della DL, per ogni direttore operativo",null,null,149,null,0.1,0.1,0.1,0.1,0.1,0.1,0.1,0.1,0.1]
[96,null,null,"Qc.I.05.01","Ufficio della DL, per direttore operativo “GEOLOGO”",null,250,150,144,3.9E-2,3.9E-2,9.5000000000000001E-2,3.9E-2,3.9E-2,0.127,9.5000000000000001E-2,0,9.5000000000000001E-2]
[97,null,null,null,null,null,500,null,null,0.01,0.01,8.1000000000000003E-2,0.01,0.01,0.11,8.1000000000000003E-2,0,8.1000000000000003E-2]
[98,null,null,null,null,null,1000,null,null,1.2999999999999999E-2,1.2999999999999999E-2,7.0999999999999994E-2,1.2999999999999999E-2,1.2999999999999999E-2,7.6999999999999999E-2,7.0999999999999994E-2,0,7.0999999999999994E-2]
[99,null,null,null,null,null,2500,null,null,1.7999999999999999E-2,1.7999999999999999E-2,5.1999999999999998E-2,1.7999999999999999E-2,1.7999999999999999E-2,2.9000000000000001E-2,5.1999999999999998E-2,0,5.1999999999999998E-2]
[100,null,null,null,null,null,10000,null,null,2.1999999999999999E-2,2.1999999999999999E-2,4.2000000000000003E-2,2.1999999999999999E-2,2.1999999999999999E-2,1.9E-2,4.2000000000000003E-2,0,4.2000000000000003E-2]
[101,null,null,null,null,null,null,null,null,2.1000000000000001E-2,2.1000000000000001E-2,0.03,2.1000000000000001E-2,2.1000000000000001E-2,1.7999999999999999E-2,0.03,0,0.03]
[102,null,null,"Qc.I.06","Ufficio della DL, per ogni ispettore di cantiere ",null,null,151,null,0.06,0.06,0.06,0.06,0.06,0.06,0.06,0.06,0.06]
[103,null,null,"Qc.I.07","Variante delle quantità del progetto in corso d'opera ",null,null,null,null,0.14000000000000001,0.09,0.09,0.15,0.15,0.12,0.12,0.11,0.12]
[104,null,null,"Qc.I.08","Variante del progetto in corso d'opera ",null,null,null,null,0.41,0.43,0.43,0.32,0.32,0.42,0.34,0.4,0.42]
[105,null,null,"Qc.I.09","Contabilità dei lavori a MISURA",null,500,null,null,0.06,0.06,0.06,4.4999999999999998E-2,4.4999999999999998E-2,4.4999999999999998E-2,4.4999999999999998E-2,4.4999999999999998E-2,4.4999999999999998E-2]
[106,null,null,null,null,null,null,null,null,1.2E-2,1.2E-2,1.2E-2,0.09,0.09,0.09,0.09,0.09,0.09]
[107,null,null,"Qc.I.10","Contabilità dei lavori a CORPO",null,500,null,null,4.4999999999999998E-2,4.4999999999999998E-2,4.4999999999999998E-2,3.5000000000000003E-2,3.5000000000000003E-2,3.5000000000000003E-2,3.5000000000000003E-2,3.5000000000000003E-2,3.5000000000000003E-2]
[108,null,null,null,null,null,null,null,null,0.09,0.09,0.09,7.0000000000000007E-2,7.0000000000000007E-2,7.0000000000000007E-2,7.0000000000000007E-2,7.0000000000000007E-2,7.0000000000000007E-2]
[109,null,null,"Qc.I.11","Certificato di regolare esecuzione (art. 237, d.P.R. 207/2010)",null,null,null,null,0.04,0.04,0.04,0.04,0.04,0.04,0.04,0.04,0.04]
[110,null,null,"Qc.I.12","Coordinamento della sicurezza in esecuzione (art. 92 d.lgs. n. 81/2008)",null,null,null,147,0.25,0.25,0.25,0.25,0.25,0.25,0.25,0.25,0.25]
[111,null,null,"Qc.I.13","Supporto al RUP: supervisione e coordinamento della D.L. e del C.S.E.",null,null,null,null,0.04,0.04,0.04,0.04,0.04,0.04,0.04,0.04,0.04]
[112,null,null,"Qd.I.01","Collaudo tecnico amministrativo ( Parte II, Titolo X, d.P.R. 207/2010) ",null,null,null,null,0.08,0.08,0.08,0.08,0.08,0.08,0.08,0.08,0.08]
[113,"COLLAUDO \n(COL)  ",null,"Qd.I.02","Revisione tecnico contabile (Parte II, Titolo X, d.P.R. 207/2010)",null,null,null,null,0.02,0.02,0.02,0.02,0.02,0.02,0.02,0.02,0.02]
[114,null,null,"Qd.I.03","Collaudo statico (Capitolo 9, d.m. 14/01/2008)",null,null,null,null,0,0.22,0.22,0,0,0,0,0,0]
[115,null,null,"Qd.I.04","Collaudo tecnico funzionale degli impianti (d.m. 22/01/2008, n. 37)",null,null,null,null,0,0,0,0.18,0.18,0,0.18,0,0]
[116,null,null,"Qd.I.05","Attestato di certificazione energetica (art. 6 d.lgs. 311/2006) Esclusa diagnosi energetica         ",null,null,null,null,0.03,0.03,0.03,0.03,0.03,0,0,0,0]
[117,"SUPPORTO AL RUP \n(RUP)",null,{"$f":"D7","v":"Qa.I.03"},{"$f":"E7","v":"Supporto al RUP: accertamenti e verifiche preliminari "},null,null,null,null,{"$f":"J7","v":0.02},{"$f":"K7","v":0.02},0.02,0.02,0.02,0.02,0.02,0.02,{"$f":"R7","v":0.02}]
[118,null,null,{"$f":"D42","v":"Qb.I.19"},{"$f":"E42","v":"Supporto al RUP: supervisione e coordinamento progettazione preliminare "},null,null,null,null,{"$f":"J42","v":0.01},{"$f":"K42","v":0.01},0.01,0.01,0.01,0.01,0.01,0.01,{"$f":"R42","v":0.01}]
[119,null,null,{"$f":"D78","v":"Qb.II.26"},{"$f":"E78","v":"Supporto al RUP: supervisione e coordinamento progettazione definitiva"},null,null,null,null,{"$f":"J78","v":0.01},{"$f":"K78","v":0.01},0.01,0.01,0.01,0.01,0.01,0.01,{"$f":"R78","v":0.01}]
[120,null,null,{"$f":"D87","v":"Qb.III.08"},{"$f":"E87","v":"Supporto al RUP: supervisione e coordinamento progettazione esecutiva"},null,null,null,null,{"$f":"J87","v":0.01},{"$f":"K87","v":0.01},0.01,0.01,0.01,0.01,0.01,0.01,{"$f":"R87","v":0.01}]
[121,null,null,{"$f":"D89","v":"Qb.III.10"},{"$f":"E89","v":"Supporto al RUP: per la programmazione e progettazione appalto"},null,null,null,null,{"$f":"J89","v":0.04},{"$f":"K89","v":0.04},0.04,0.04,0.04,0.04,0.04,0.04,{"$f":"R89","v":0.04}]
[122,null,null,{"$f":"D111","v":"Qc.I.13"},{"$f":"E111","v":"Supporto al RUP: supervisione e coordinamento della D.L. e del C.S.E."},null,null,null,null,{"$f":"J111","v":0.04},{"$f":"K111","v":0.04},0.04,0.04,0.04,0.04,0.04,0.04,{"$f":"R111","v":0.04}]
[123,"VERIFICA DI PROGETTO \n(VER)",null,{"$f":"D43","v":"Qb.I.20"},{"$f":"MID(E43,25,90)","v":"Verifica della progettazione preliminare"},null,null,null,null,{"$f":"J43","v":0.06},{"$f":"K43","v":0.06},0.06,0.06,0.06,0.06,0.06,0.06,{"$f":"R43","v":0.06}]
[124,null,null,{"$f":"D79","v":"Qb.II.27"},{"$f":"MID(E79,25,90)","v":"Verifica della progettazione definitiva "},null,null,null,null,{"$f":"J79","v":0.13},{"$f":"K79","v":0.13},0.13,0.13,0.13,0.13,0.13,0.13,{"$f":"R79","v":0.13}]
[125,null,null,{"$f":"D88","v":"Qb.III.09"},{"$f":"MID(E88,25,90)","v":"Verifica della progettazione esecutiva"},null,null,null,null,{"$f":"J88","v":0.13},{"$f":"K88","v":0.13},0.13,0.13,0.13,0.13,0.13,0.13,{"$f":"R88","v":0.13}]
[126,null,null,{"$f":"D90","v":"Qb.III.11"},{"$f":"MID(E90,25,90)","v":"Validazione del progetto"},null,null,null,null,{"$f":"J90","v":0.01},{"$f":"K90","v":0.01},0.01,0.01,0.01,0.01,0.01,0.01,{"$f":"R90","v":0.01}]
[127,"Redatto il 15/06/20 17:31:43",null,"Stampa del 17/06/20 09:10:23",null,null,{"$f":"G141","v":0},{"$f":"H140","v":8},9,10,11,12,13,14,15,16,17,18,19,20,21,22,23,24,25,26,27,28,29,30,31,32,33,34,35,36,37,38,39,{"$f":"AN140","v":40},41,42,43,44,45,46,47,48,49,50,51,52,53,54,55,56,57,58,59,60,61,62,63,64,65,66,67,68,69,70,71]
[128,null,null,null,{"$f":"B5","v":"a) Attività propedeutiche alla Progettazione (AP)     "},{"$f":"SUM(F5:F14)","v":0}]
[129,null,null,null,{"$f":"C15","v":"b.I) \nProgettazione di fattibilità \n(PF)     "},{"$f":"SUM(F15:F39)","v":0}]
[130,null,null,null,{"$f":"C44","v":"b.II) \nProgettazione definitiva \n(PD)"},{"$f":"SUM(F44:F75)","v":0}]
[131,null,null,null,{"$f":"C80","v":"b.III) \nProgettazione esecutiva \n(PE)"},{"$f":"SUM(F80:F86)","v":0}]
[132,null,null,null,{"$f":"C91","v":"c.I) \nDirezione dei lavori \n(DL)"},{"$f":"SUM(F91:F110)","v":0}]
[133,null,null,null,"b) SOLO FASE DI PROGETTAZIONE",{"$f":"IF(G133>1,4,0)","v":0},{"$f":"SUM(F128:F131)","v":0}]
[134,null,null,null,"TOTALE GENERALE",{"$f":"IF(G134>5,G134,0)","v":0},{"$f":"F132+F133","v":0}]
[135,null,null,null,"COLLAUDO (COL)  ",{"$f":"IF(BQ135>0,6,0)","v":0},{"$f":"SUM(BQ112:BQ116)","v":0}]
[136,null,null,null,{"$f":"B117","v":"SUPPORTO AL RUP \n(RUP)"},{"$f":"IF(BQ136>0,7,0)","v":0},{"$f":"SUM(BQ117:BQ122)","v":0}]
[137,null,null,null,{"$f":"B123","v":"VERIFICA DI PROGETTO \n(VER)"},{"$f":"IF(BQ137>0,8,0)","v":0},{"$f":"SUM(BQ123:BQ126)","v":0}]
[138,null,null,null,"Aliquota spese","U"]
[139,null,null,null,"Importo delle spese"]
[140,null,null,null,"Importo TOTALE comprese spese",null,null,8,9,10,11,12,13,14,15,16,17,18,19,20,21,22,23,24,25,26,27,28,29,30,31,32,33,34,35,36,37,38,39,40,41,42,43,44,45,46,47,48,49,50,51,52,53,54,55,56,57,58,59,60,61,62,63,64,65,66,67,68,69,70,71]
[141,null,null,null,null,null,null,null,null,null,10,10,10,10,10,10,10,10,10,10,10,10,10,10,10,10,10,10,10,10,10,10,11,12,11,12,12,12,13,13,13,13,14,14,14,14,14,14,14,14,14,15,15,15,16,16,16,16,16,17,17,17,18,18,18,18,18,18]
[142,null,null,{"$f":"D25","v":"Qb.I.11"},"(Geologo nel progetto di fattibilità)",{"$f":"IF(BQ25>0,1,0)","v":0},null,"riferimento alla tabella Q"]
[143,null,null,{"$f":"D56","v":"Qb.II.13"},"(Geologo nel progetto definitivo)",{"$f":"IF(BQ56>0,1,0)","v":0},null,null,null,"ID-opere","E.01","E.02","E.03","E.04","E.05","E.06","E.07","E.08","E.09","E.10","E.11","E.12","E.13","E.14","E.15","E.16","E.17","E.18","E.19","E.20","E.21","E.22","S.01","S.02","S.03","S.04","S.05","S.06","IA.01","IA.02","IA.03","IA.04","IB.04","IB.05","IB.06","IB.07","IB.08","IB.09","IB.10","IB.11","IB.12","V.01","V.02","V.03","D.01","D.02","D.03","D.04","D.05","T.01","T.02","T.03","P.01","P.02","P.03","P.04","P.05","P.06",null,"CONTROLLO","CORRISPETTIVI"]
[144,null,null,{"$f":"D96","v":"Qc.I.05.01"},"(Geologo in Direzione dei Lavori)",{"$f":"IF(BQ96>0,1,0)","v":0},null,null,null,"Gradi di complessità G",0.65,0.95,0.95,1.2,0.65,0.95,1.2,0.95,1.1499999999999999,1.2,0.95,1.1499999999999999,1.2,0.65,0.95,1.2,0.65,0.95,1.2,0.95,1.2,1.55,0.7,0.5,0.95,0.9,1.05,1.1499999999999999,0.75,0.85,1.1499999999999999,1.3,0.55000000000000004,0.7,0.7,0.75,0.5,0.6,0.75,0.9,1,0.4,0.45,0.75,0.65,0.45,0.55000000000000004,0.65,0.8,0.95,0.7,1.2,0.85,0.85,0.85,0.85,0.85,0.85,"TOTALE",null,"comprese le"]
[145,null,null,null,"Prestazioni da GEOLOGO",{"$f":"IF(G145>1,1,0)","v":0},{"$f":"SUM(F142:F144)","v":0},null,null,"(importo)",null,null,null,null,null,null,null,null,null,null,null,null,null,null,null,null,null,null,null,null,null,null,null,null,null,null,null,null,null,null,null,null,null,null,null,null,null,null,null,null,null,null,null,null,null,null,null,null,null,null,null,null,null,null,null,null,null,null,{"$f":"SUM($K145:$BP145)","v":0},{"$f":"COUNTIF(K145:BP145,\">0\")","v":0},"SPESE"]
[146,null,null,{"$f":"D86","v":"Qb.III.07"},{"$f":"E86","v":"Piano di Sicurezza e Coordinamento (artt. 91 e 100 d.lgs. n. 81/2008)"},{"$f":"IF(BQ146>0,1,0)","v":1},null,null,null,"P",{"$f":"IF(K145>0,0.03+10/K145^0.4,0)*100","v":0},0,0,0,0,0,0,0,0,0,0,0,0,0,0,0,0,0,0,0,0,0,0,0,0,0,0,0,0,0,0,0,0,0,0,0,0,0,0,0,0,0,0,0,0,0,0,0,0,0,0,0,0,0,0,0,0,0,"ONORARI","SPESE","TOTALE"]
[147,null,null,{"$f":"D110","v":"Qc.I.12"},{"$f":"E110","v":"Coordinamento della sicurezza in esecuzione (art. 92 d.lgs. n. 81/2008)"},{"$f":"IF(BQ147>0,1,0)","v":0}]
[148,null,null,null,"Prestazioni da Coordinatore ex d.lgs. n. 81 del 2008",{"$f":"IF(G148>1,1,0)","v":0},{"$f":"SUM(F146:F147)","v":1}]
[149,null,1,{"$f":"D95","v":"Qc.I.05"},"Ufficio della DL, direttori operativi","=SOMMA(\"K149:BP149\")"]
[150,null,2,{"$f":"D96","v":"Qc.I.05.01"},"Ufficio della DL, direttori \"Geologi\"","=SOMMA(\"K150:BP150\")"]
[151,null,3,{"$f":"D102","v":"Qc.I.06"},"Ufficio della DL, ispettori di cantiere","=SOMMA(\"K151:BP151\")"]
[1,2,3,4,5,6,7,8,9,10,11,12,13,14,15,16,17,18,19,20,21,22,23,24,25,26,27,28,29,30,31,32,33,34,35,36,37,38,39,40,41,42,43,44,45,46,47,48,49,50,51,52,53,54,55,56,57,58,59,60,61,62,63,64,65,66,67,68,69,70,71]
[]
[]
[null,null,null,null,null,null,null,"Macrocategorie",null,null,"EDILIZIA","EDILIZIA","EDILIZIA","EDILIZIA","EDILIZIA","EDILIZIA","EDILIZIA","EDILIZIA","EDILIZIA","EDILIZIA","EDILIZIA","EDILIZIA","EDILIZIA","EDILIZIA","EDILIZIA","EDILIZIA","EDILIZIA","EDILIZIA","EDILIZIA","EDILIZIA","EDILIZIA","EDILIZIA","STRUTTURE-A","STRUTTURE-B","STRUTTURE-A","STRUTTURE-B","STRUTTURE-B","STRUTTURE-B","IMPIANTI-A","IMPIANTI-A","IMPIANTI-A","IMPIANTI-A","IMPIANTI-B","IMPIANTI-B","IMPIANTI-B","IMPIANTI-B","IMPIANTI-B","IMPIANTI-B","IMPIANTI-B","IMPIANTI-B","IMPIANTI-B","MOBILITA'","MOBILITA'","MOBILITA'","IDRAULICA","IDRAULICA","IDRAULICA","IDRAULICA","IDRAULICA","ITC","ITC","ITC","PAESAGGIO","PAESAGGIO","PAESAGGIO","PAESAGGIO","PAESAGGIO","PAESAGGIO"]
[null,null,null,null,null,null,null,"declaratoria",null,null,"Edifici rurali per l'attività agricola con corredi tecnici di tipo semplice (quali tettoie, depositi e ricoveri) - Edifici industriali o artigianali di importanza costruttiva corrente con corredi tecnici di base.","Edifici rurali per l'attività agricola con corredi tecnici di tipo complesso - Edifici industriali o artigianali con organizzazione e corredi tecnici di tipo complesso","Ostelli, Pensioni, Case albergo – Ristoranti - Motel e stazioni di servizio - negozi - mercati coperti di tipo semplice","Alberghi, Villaggi turistici - Mercati e Centri commerciali complessi","Edifici, pertinenze, autorimesse semplici, senza particolari esigenze tecniche. Edifici provvisori di modesta importanza","Edilizia residenziale privata e pubblica di tipo corrente con costi di costruzione nella media di mercato e con tipologie standardizzate","Edifici residenziali di tipo pregiato con costi di costruzione eccedenti la media di mercato e con tipologie diversificate","Sede Azienda Sanitaria, Distretto sanitario, Ambulatori di base. Asilo Nido, Scuola Materna, Scuola elementare, Scuole secondarie di primo grado fino a 24 classi, Scuole secondarie di secondo grado fino a 25 classi","Scuole secondarie di primo grado oltre 24 classi-Istituti scolastici superiori oltre 25 classi- Case di cura ","Poliambulatori, Ospedali, Istituti di ricerca, Centri di riabilitazione, Poli scolastici, Università, Accademie, Istituti di ricerca universitaria","Padiglioni provvisori per esposizioni - Costruzioni relative ad opere cimiteriali di tipo normale (colombari, ossari, loculari, edicole funerarie con caratteristiche costruttive semplici), Case parrocchiali, Oratori - Stabilimenti balneari - Aree ed attrezzature per lo sport all'aperto, Campo sportivo e servizi annessi, di tipo semplice","Aree ed attrezzature per lo sport all'aperto, Campo sportivo e servizi annessi, di tipo complesso - Palestre e piscine coperte","Biblioteca, Cinema, Teatro, Pinacoteca, Centro Culturale, Sede congressuale, Auditorium, Museo, Galleria d'arte, Discoteca, Studio radiofonico o televisivo o di produzione cinematografica - Opere cimiteriali di tipo monumentale, Monumenti commemorativi, Palasport, Stadio, Chiese","Edifici provvisori di modesta importanza a servizio di caserme","Caserme con corredi tecnici di importanza corrente","Sedi ed Uffici di Società ed Enti, Sedi ed Uffici comunali, Sedi ed Uffici provinciali, Sedi ed Uffici regionali, Sedi ed Uffici ministeriali, Pretura, Tribunale, Palazzo di giustizia, Penitenziari, Caserme con corredi tecnici di importanza maggiore, Questura","Verde ed opere di arredo urbano improntate a grande semplicità, pertinenziali agli edifici ed alla viabilità, Campeggi e simili","Arredamenti con elementi acquistati dal mercato, Giardini, Parchi gioco, Piazze e spazi pubblici all’aperto","Arredamenti con elementi singolari, Parchi urbani, Parchi ludici attrezzati, Giardini e piazze storiche, Opere di riqualificazione paesaggistica e ambientale di aree urbane.","Interventi di manutenzione straordinaria, ristrutturazione, riqualificazione, su edifici e manufatti esistenti","Interventi di manutenzione straordinaria, restauro, ristrutturazione, riqualificazione, su edifici e manufatti di interesse storico artistico non soggetti a tutela ai sensi del decreto legislativo n. 42/2004","Interventi di manutenzione, restauro, risanamento conservativo, riqualificazione, su edifici e manufatti di interesse storico artistico soggetti a tutela ai sensi del decreto legislativo n. 42/2004, oppure di particolare importanza","Strutture o parti di strutture in cemento armato, non soggette ad azioni sismiche - riparazione o intervento locale - Verifiche strutturali relative - Ponteggi, centinature e strutture provvisionali di durata inferiore a due anni","Strutture o parti di strutture in muratura, legno, metallo, non soggette ad azioni sismiche - riparazione o intervento locale – Verifiche strutturali relative.","Strutture o parti di strutture in cemento armato - Verifiche strutturali relative - Ponteggi, centinature e strutture provvisionali di durata superiore a due anni.","Strutture o parti di strutture in muratura, legno, metallo - Verifiche strutturali relative - Consolidamento delle opere di fondazione di manufatti dissestati - Ponti, Paratie e tiranti, Consolidamento di pendii e di fronti rocciosi ed opere connesse, di tipo corrente - Verifiche strutturali relative.","Dighe, Conche, Elevatori, Opere di ritenuta e di difesa, rilevati, colmate. Gallerie, Opere sotterranee e subacquee, Fondazioni speciali.","Opere strutturali di notevole importanza costruttiva e richiedenti calcoli particolari - Verifiche strutturali relative - Strutture con metodologie normative che richiedono modellazione particolare: edifici alti con necessità di valutazioni di secondo ordine.","Impianti per approvvigionamento, preparazione e distribuzione di acqua nell'interno di edifici o per scopi industriali – Impianti sanitari - Impianti di fognatura domestica od industriale ed opere relative al trattamento delle acque di rifiuto - Reti di distribuzione di combustibili liquidi o gassosi - Impianti per la distribuzione dell’aria compressa del vuoto e di gas medicali - Impianti e reti antincendio","Impianti di riscaldamento - Impianto di raffrescamento, climatizzazione, trattamento dell’aria - Impianti meccanici di distribuzione fluidi - Impianto solare termico","Impianti elettrici in genere, impianti di illuminazione, telefonici, di rivelazione incendi, fotovoltaici, a corredo di edifici e costruzioni di importanza corrente - singole apparecchiature per laboratori e impianti pilota di tipo semplice","Impianti elettrici in genere, impianti di illuminazione, telefonici, di sicurezza, di rivelazione incendi, fotovoltaici, a corredo di edifici e costruzioni complessi - cablaggi strutturati - impianti in fibra ottica - singole apparecchiature per laboratori e impianti pilota di tipo complesso","Depositi e discariche senza trattamento dei rifiuti.","Impianti per le industrie molitorie, cartarie, alimentari, delle fibre tessili naturali, del legno, del cuoio e simili.","Impianti della industria chimica inorganica - Impianti della preparazione e distillazione dei combustibili - Impianti siderurgici - Officine meccaniche e laboratori - Cantieri navali - Fabbriche di cemento, calce, laterizi, vetrerie e ceramiche - Impianti per le industrie della fermentazione, chimico-alimentari e tintorie - Impianti termovalorizzatori e impianti di trattamento dei rifiuti - Impianti della industria chimica organica - Impianti della piccola industria chimica speciale - Impianti di metallurgia - Impianti per la preparazione ed il trattamento dei minerali per la sistemazione e coltivazione delle cave e miniere","Gli impianti precedentemente esposti quando siano di complessità particolarmente rilevante o comportanti rischi e problematiche ambientali molto rilevanti","Impianti di linee e reti per trasmissioni e distribuzione di energia elettrica, telegrafia, telefonia.","Centrali idroelettriche ordinarie - Stazioni di trasformazioni e di conversione impianti di trazione elettrica","Impianti termoelettrici-Impianti dell'elettrochimica - Impianti della elettrometallurgia - Laboratori con ridotte problematiche tecniche","Campi fotovoltaici - Parchi eolici","Micro Centrali idroelettriche - Impianti termoelettrici - Impianti della elettrometallurgia di tipo complesso","Interventi di manutenzione su viabilità ordinaria","Strade, linee tramviarie, ferrovie, strade ferrate, di tipo ordinario, escluse le opere d'arte da compensarsi a parte - Piste ciclabili","Strade, linee tramviarie, ferrovie, strade ferrate, con particolari difficoltà di studio, escluse le opere d'arte e le stazioni, da compensarsi a parte - Impianti teleferici e funicolari - Piste aeroportuali e simili.","Opere di navigazione interna e portuali","Bonifiche ed irrigazioni a deflusso naturale, sistemazione di corsi d'acqua e di bacini montani","Bonifiche ed irrigazioni con sollevamento meccanico di acqua (esclusi i macchinari) - Derivazioni d'acqua per forza motrice e produzione di energia elettrica","Impianti per provvista, condotta, distribuzione d'acqua, improntate a grande semplicità - Fognature urbane improntate a grande semplicità - Condotte subacquee in genere, metanodotti e gasdotti, di tipo ordinario","Impianti per provvista, condotta, distribuzione d'acqua - Fognature urbane - Condotte subacquee in genere, metanodotti e gasdotti, con problemi tecnici di tipo speciale.","Sistemi informativi, gestione elettronica del flusso documentale, dematerializzazione e gestione archivi, ingegnerizzazione dei processi, sistemi di gestione delle attività produttive, Data center, server farm.","Reti locali e geografiche, cablaggi strutturati, impianti in fibra ottica, Impianti di videosorveglianza, controllo accessi, identificazione targhe di veicoli ecc Sistemi wireless, reti wifi, ponti radio.","Elettronica Industriale Sistemi a controllo numerico, Sistemi di automazione, Robotica","Opere relative alla sistemazione di ecosistemi naturali o naturalizzati, alle aree naturali protette ed alle aree a rilevanza faunistica. Opere relative al restauro paesaggistico di territori compromessi ed agli interventi su elementi strutturali del paesaggio. Opere di configurazione di assetto paesaggistico.","Opere a verde sia su piccola scala o grande scala dove la rilevanza dell’opera è prevalente rispetto alle opere di tipo costruttivo.","Opere di riqualificazione e risanamento di ambiti naturali, rurali e forestali o urbani finalizzati al ripristino delle condizioni originarie, al riassetto delle componenti biotiche ed abiotiche.","Opere di utilizzazione di bacini estrattivi a parete o a fossa","Opere di assetto ed utilizzazione forestale nonché dell’impiego ai fini industriali, energetici ed ambientali. Piste forestali, strade forestali– percorsi naturalistici, aree di sosta e di stazionamento dei mezzi forestali. Meccanizzazione forestale","Opere di intervento per la realizzazione di infrastrutture e di miglioramento dell’assetto rurale."]

{"sheet":"Z-2","index":1,"n_rows":151,"n_cols":114,"rows_kept":151,"cut":false,"hidden":false,"merged":[[0,1,0,3],[79,2,89,2],[14,1,89,1],[1,1,1,3],[2,1,2,2],[10,2,12,2],[7,2,9,2],[4,1,13,1],[4,2,6,2],[14,2,42,2],[43,2,78,2],[137,1,137,3],[138,1,139,3],[90,1,109,1],[90,2,109,2],[122,1,125,2],[116,1,121,2],[112,1,115,2],[111,1,111,2]]}
["",{"$f":"Ripristini!B1","v":"PRESTAZIONI"},null,null,"Categoria «ID-Opere»",null,null,null,null,null,{"$f":"Ripristini!K143","v":"E.01"},{"$f":"Ripristini!L143","v":"E.02"},{"$f":"Ripristini!M143","v":"E.03"},{"$f":"Ripristini!N143","v":"E.04"},{"$f":"Ripristini!O143","v":"E.05"},{"$f":"Ripristini!P143","v":"E.06"},{"$f":"Ripristini!Q143","v":"E.07"},{"$f":"Ripristini!R143","v":"E.08"},{"$f":"Ripristini!S143","v":"E.09"},{"$f":"Ripristini!T143","v":"E.10"},{"$f":"Ripristini!U143","v":"E.11"},{"$f":"Ripristini!V143","v":"E.12"},{"$f":"Ripristini!W143","v":"E.13"},{"$f":"Ripristini!X143","v":"E.14"},{"$f":"Ripristini!Y143","v":"E.15"},{"$f":"Ripristini!Z143","v":"E.16"},{"$f":"Ripristini!AA143","v":"E.17"},{"$f":"Ripristini!AB143","v":"E.18"},{"$f":"Ripristini!AC143","v":"E.19"},{"$f":"Ripristini!AD143","v":"E.20"},{"$f":"Ripristini!AE143","v":"E.21"},{"$f":"Ripristini!AF143","v":"E.22"},{"$f":"Ripristini!AG143","v":"S.01"},{"$f":"Ripristini!AH143","v":"S.02"},{"$f":"Ripristini!AI143","v":"S.03"},{"$f":"Ripristini!AJ143","v":"S.04"},{"$f":"Ripristini!AK143","v":"S.05"},{"$f":"Ripristini!AL143","v":"S.06"},{"$f":"Ripristini!AM143","v":"IA.01"},{"$f":"Ripristini!AN143","v":"IA.02"},{"$f":"Ripristini!AO143","v":"IA.03"},{"$f":"Ripristini!AP143","v":"IA.04"},{"$f":"Ripristini!AQ143","v":"IB.04"},{"$f":"Ripristini!AR143","v":"IB.05"},{"$f":"Ripristini!AS143","v":"IB.06"},{"$f":"Ripristini!AT143","v":"IB.07"},{"$f":"Ripristini!AU143","v":"IB.08"},{"$f":"Ripristini!AV143","v":"IB.09"},{"$f":"Ripristini!AW143","v":"IB.10"},{"$f":"Ripristini!AX143","v":"IB.11"},{"$f":"Ripristini!AY143","v":"IB.12"},{"$f":"Ripristini!AZ143","v":"V.01"},{"$f":"Ripristini!BA143","v":"V.02"},{"$f":"Ripristini!BB143","v":"V.03"},{"$f":"Ripristini!BC143","v":"D.01"},{"$f":"Ripristini!BD143","v":"D.02"},{"$f":"Ripristini!BE143","v":"D.03"},{"$f":"Ripristini!BF143","v":"D.04"},{"$f":"Ripristini!BG143","v":"D.05"},{"$f":"Ripristini!BH143","v":"T.01"},{"$f":"Ripristini!BI143","v":"T.02"},{"$f":"Ripristini!BJ143","v":"T.03"},{"$f":"Ripristini!BK143","v":"P.01"},{"$f":"Ripristini!BL143","v":"P.02"},{"$f":"Ripristini!BM143","v":"P.03"},{"$f":"Ripristini!BN143","v":"P.04"},{"$f":"Ripristini!BO143","v":"P.05"},{"$f":"Ripristini!BP143","v":"P.06"},{"$f":"COUNTIF(K3:BP3,\">100\")","v":4},null,"Corrispettivi"]
[null,{"$f":"Ripristini!B2","v":"(Tavola Z-2)"},null,null,{"$f":"Ripristini!E2","v":"Grado di complessità «G»"},null,null,null,null,null,0.65,0.95,0.95,1.2,0.65,0.95,1.2,0.95,1.1499999999999999,1.2,0.95,1.1499999999999999,1.2,0.65,0.95,1.2,0.65,0.95,1.2,0.95,1.2,1.55,0.7,0.5,0.95,0.9,1.05,1.1499999999999999,0.75,0.85,1.1499999999999999,1.3,0.55000000000000004,0.7,0.7,0.75,0.5,0.6,0.75,0.9,1,0.4,0.45,0.75,0.65,0.45,0.55000000000000004,0.65,0.8,0.95,0.7,1.2,0.85,0.85,0.85,0.85,0.85,0.85,{"$f":"Ripristini!BQ144","v":"TOTALE"},null,"con le Spese"]
[null,{"$f":"Ripristini!B3","v":"Fasi prestazionali"},null,null,{"$f":"Ripristini!E3","v":"Importo dei lavori «V»"},null,"Scaglioni",null,null,null,0,0,0,0,0,0,0,0,0,0,0,0,0,0,0,0,0,0,0,1645000,0,0,0,0,1175000,0,0,0,940000,0,940000,0,0,0,0,0,0,0,0,0,0,0,0,0,0,0,0,0,0,0,0,0,0,0,0,0,0,0,{"$f":"SUM(K3:BP3)","v":4700000}]
[null,null,"Sottofasi",{"$f":"Ripristini!D4","v":"«Q»"},"Parametro «P» =se(V<25000;(0,03+10/25000);(0,03+10/V^0,4))x100",null,"(x 1.000)",null,null,null,null,null,{"$f":"IF(M3=0,0,IF(M3<=25000,(0.03+10/25000^0.4),0.03+10/M3^0.4)*100)","v":0},0,0,0,0,0,{"$f":"IF(S3=0,0,IF(S3<=25000,(0.03+10/25000^0.4),0.03+10/S3^0.4)*100)","v":0},0,0,{"$f":"IF(V3=0,0,IF(V3<=25000,(0.03+10/25000^0.4),0.03+10/V3^0.4)*100)","v":0},0,0,0,0,0,0,0,6.2623731873301267,0,0,0,0,6.7323714038799842,0,0,0,7.0808333388728055,0,7.0808333388728055,0,0,0,0,0,0,0,0,0,0,0,0,0,0,0,0,0,0,0,0,0,0,0,0,0,0,0,{"$f":"Ripristini!BQ146","v":"ONORARI"},{"$f":"Ripristini!BR146","v":"SPESE"},{"$f":"Ripristini!BS146","v":"TOTALE"}]
[null,"a) Attività propedeutiche alla Progettazione (AP)     ","a.I) Studi di fattibilità","Qa.I.01",{"$f":"Ripristini!E5","v":"Relazione illustrativa (art. 14, comma 1, d.P.R. 207/2010)"},null,null,null,null,null,null,null,null,null,null,null,null,null,null,null,null,null,null,null,null,null,null,null,null,null,null,null,null,null,null,null,null,null,null,null,null,null,null,null,null,null,null,null,null,null,null,null,null,null,null,null,null,null,null,null,null,null,null,null,null,null,null,null,{"$f":"SUM(K5:BP5)","v":0},{"$f":"BQ5*BQ$138","v":0},{"$f":"BQ5+BR5","v":0}]
[null,null,null,{"$f":"Ripristini!D6","v":"Qa.I.02"},{"$f":"Ripristini!E6","v":"Relazione illustrativa, elaborati progettuali e tecnico economici "},null,null,null,null,null,null,null,null,null,null,null,null,null,null,null,null,null,null,null,null,null,null,null,null,null,null,null,null,null,null,null,null,null,null,null,null,null,null,null,null,null,null,null,null,null,null,null,null,null,null,null,null,null,null,null,null,null,null,null,null,null,null,null,{"$f":"SUM(K6:BP6)","v":0},0,0]
[null,null,null,{"$f":"Ripristini!D7","v":"Qa.I.03"},{"$f":"Ripristini!E7","v":"Supporto al RUP: accertamenti e verifiche preliminari "},null,null,null,null,null,null,null,null,null,null,null,null,null,null,null,null,null,null,null,null,null,null,null,null,null,null,null,null,null,null,null,null,null,null,null,null,null,null,null,null,null,null,null,null,null,null,null,null,null,null,null,null,null,null,null,null,null,null,null,null,null,null,null,0,0]
[null,null,"a.II) Stime e valutazioni",{"$f":"Ripristini!D8","v":"Qa.II.01"},{"$f":"Ripristini!E8","v":"Sintetiche, basate su elementi sintetici e globali, vani, metri cubi, etc."},null,null,null,null,null,null,null,null,null,null,null,null,null,null,null,null,null,null,null,null,null,null,null,null,null,null,null,null,null,null,null,null,null,null,null,null,null,null,null,null,null,null,null,null,null,null,null,null,null,null,null,null,null,null,null,null,null,null,null,null,null,null,null,0,0,0]
[null,null,null,{"$f":"Ripristini!D9","v":"Qa.II.02"},{"$f":"Ripristini!E9","v":"Particolareggiate, complete di criteri di valutazione, relazione motivata, descrizioni, computi e tipi"},null,null,null,null,null,null,null,null,null,null,null,null,null,null,null,null,null,null,null,null,null,null,null,null,null,null,null,null,null,null,null,null,null,null,null,null,null,null,null,null,null,null,null,null,null,null,null,null,null,null,null,null,null,null,null,null,null,null,null,null,null,null,null,0,0,0]
[null,null,null,{"$f":"Ripristini!D10","v":"Qa.II.03"},{"$f":"Ripristini!E10","v":"Analitiche, integrate con specifiche e distinte, sullo stato e valore dei singoli componenti"},null,null,null,null,null,null,null,null,null,null,null,null,null,null,null,null,null,null,null,null,null,null,null,null,null,null,null,null,null,null,null,null,null,null,null,null,null,null,null,null,null,null,null,null,null,null,null,null,null,null,null,null,null,null,null,null,null,null,null,null,null,null,null,0,0,0]
[null,null,"a.III) Rilievi, studi e analisi",{"$f":"Ripristini!D11","v":"Qa.III.01"},{"$f":"Ripristini!E11","v":"Rilievi, studi e classificazioni agronomiche, colturali, delle biomasse e delle attività produttive "},null,null,null,null,null,null,null,null,null,null,null,null,null,null,null,null,null,null,null,null,null,null,null,null,null,null,null,null,null,null,null,null,null,null,null,null,null,null,null,null,null,null,null,null,null,null,null,null,null,null,null,null,null,null,null,null,null,null,null,null,null,null,null,0,0,0]
[null,null,null,{"$f":"Ripristini!D12","v":"Qa.III.02"},{"$f":"Ripristini!E12","v":"Rilievo botanico e analisi vegetazionali dei popolamenti erbacei ed arborei ed animali"},null,null,null,null,null,null,null,null,null,null,null,null,null,null,null,null,null,null,null,null,null,null,null,null,null,null,null,null,null,null,null,null,null,null,null,null,null,null,null,null,null,null,null,null,null,null,null,null,null,null,null,null,null,null,null,null,null,null,null,null,null,null,null,0,0,0]
[null,null,null,{"$f":"Ripristini!D13","v":"Qa.III.03"},{"$f":"Ripristini!E13","v":"Elaborazioni, analisi e valutazioni con modelli numerici, software dedicati"},null,null,null,null,null,null,null,null,null,null,null,null,null,null,null,null,null,null,null,null,null,null,null,null,null,null,null,null,null,null,null,null,null,null,null,null,null,null,null,null,null,null,null,null,null,null,null,null,null,null,null,null,null,null,null,null,null,null,null,null,null,null,null,0,0,0]
[null,null,"a.IV) Piani economici",{"$f":"Ripristini!D14","v":"Qa.IV.01"},{"$f":"Ripristini!E14","v":"Piani economici, aziendali, business plan e di investimento (Reg. CE 1698/2005)"},null,null,null,null,null,null,null,null,null,null,null,null,null,null,null,null,null,null,null,null,null,null,null,null,null,null,null,null,null,null,null,null,null,null,null,null,null,null,null,null,null,null,null,null,null,null,null,null,null,null,null,null,null,null,null,null,null,null,null,null,null,null,null,0,0,0]
[null,"PROGETTAZIONE","b.I) \nProgettazione di fattibilità \n(PF)     ",{"$f":"Ripristini!D15","v":"Qb.I.01"},{"$f":"Ripristini!E15","v":"Relazioni, planimetrie, elaborati grafici "},null,null,null,null,null,null,null,null,null,null,null,null,null,null,null,null,null,null,null,null,null,null,null,null,null,null,null,null,null,null,null,null,null,null,null,null,null,null,null,null,null,null,null,null,null,null,null,null,null,null,null,null,null,null,null,null,null,null,null,null,null,null,null,0,0,0]
[null,null,null,{"$f":"Ripristini!D16","v":"Qb.I.02"},{"$f":"Ripristini!E16","v":"Calcolo sommario spesa, quadro economico di progetto"},null,null,null,null,null,null,null,null,null,null,null,null,null,null,null,null,null,null,null,null,null,null,null,null,null,null,null,null,null,null,null,null,null,null,null,null,null,null,null,null,null,null,null,null,null,null,null,null,null,null,null,null,null,null,null,null,null,null,null,null,null,null,null,0,0,0]
[null,null,null,{"$f":"Ripristini!D17","v":"Qb.I.03"},{"$f":"Ripristini!E17","v":"Piano particellare preliminare delle aree o rilievo di massima degli immobili "},null,null,null,null,null,null,null,null,null,null,null,null,null,null,null,null,null,null,null,null,null,null,null,null,null,null,null,null,null,null,null,null,null,null,null,null,null,null,null,null,null,null,null,null,null,null,null,null,null,null,null,null,null,null,null,null,null,null,null,null,null,null,null,0,0,0]
[null,null,null,{"$f":"Ripristini!D18","v":"Qb.I.04"},{"$f":"Ripristini!E18","v":"Piano economico e finanziario di massima (art. 17, comma 4, d.P.R. 207/2010)"},null,null,null,null,null,null,null,null,null,null,null,null,null,null,null,null,null,null,null,null,null,null,null,null,null,null,null,null,null,null,null,null,null,null,null,null,null,null,null,null,null,null,null,null,null,null,null,null,null,null,null,null,null,null,null,null,null,null,null,null,null,null,null,0,0,0]
[null,null,null,{"$f":"Ripristini!D19","v":"Qb.I.05"},{"$f":"Ripristini!E19","v":"Capitolato speciale descrittivo e prestazionale, schema di contratto "},null,null,null,null,null,null,null,null,null,null,null,null,null,null,null,null,null,null,null,null,null,null,null,null,null,null,null,null,null,null,null,null,null,null,null,null,null,null,null,null,null,null,null,null,null,null,null,null,null,null,null,null,null,null,null,null,null,null,null,null,null,null,null,0,0,0]
[null,null,null,{"$f":"Ripristini!D20","v":"Qb.I.06"},{"$f":"Ripristini!E20","v":"Relazione geotecnica (art.19, comma 1, d.P.R. 207/2010)"},null,null,null,null,null,null,null,null,null,null,null,null,null,null,null,null,null,null,null,null,null,null,null,null,null,null,null,null,null,null,null,null,null,null,null,null,null,null,null,null,null,null,null,null,null,null,null,null,null,null,null,null,null,null,null,null,null,null,null,null,null,null,null,0,0,0]
[null,null,null,{"$f":"Ripristini!D21","v":"Qb.I.07"},{"$f":"Ripristini!E21","v":"Relazione idrologica (art. 19, comma 1, d.P.R. 207/2010)"},null,null,null,null,null,null,null,null,null,null,null,null,null,null,null,null,null,null,null,null,null,null,null,null,null,null,null,null,null,null,null,null,null,null,null,null,null,null,null,null,null,null,null,null,null,null,null,null,null,null,null,null,null,null,null,null,null,null,null,null,null,null,null,0,0,0]
[null,null,null,{"$f":"Ripristini!D22","v":"Qb.I.08"},{"$f":"Ripristini!E22","v":"Relazione idraulica (art. 19, comma 1, d.P.R. 207/2010)"},null,null,null,null,null,null,null,null,null,null,null,null,null,null,null,null,null,null,null,null,null,null,null,null,null,null,null,null,null,null,null,null,null,null,null,null,null,null,null,null,null,null,null,null,null,null,null,null,null,null,null,null,null,null,null,null,null,null,null,null,null,null,null,0,0,0]
[null,null,null,{"$f":"Ripristini!D23","v":"Qb.I.09"},{"$f":"Ripristini!E23","v":"Relazione sismica e sulle strutture (art. 19, comma 1, d.P.R. 207/2010)"},null,null,null,null,null,null,null,null,null,null,null,null,null,null,null,null,null,null,null,null,null,null,null,null,null,null,null,null,null,null,null,null,null,null,null,null,null,null,null,null,null,null,null,null,null,null,null,null,null,null,null,null,null,null,null,null,null,null,null,null,null,null,null,0,0,0]
[null,null,null,{"$f":"Ripristini!D24","v":"Qb.I.10"},{"$f":"Ripristini!E24","v":"Relazione archeologica (art. 19, comma 1, d.P.R. 207/2010)"},null,null,null,null,null,null,null,null,null,null,null,null,null,null,null,null,null,null,null,null,null,null,null,null,null,null,null,null,null,null,null,null,null,null,null,null,null,null,null,null,null,null,null,null,null,null,null,null,null,null,null,null,null,null,null,null,null,null,null,null,null,null,null,0,0,0]
[null,null,null,{"$f":"Ripristini!D25","v":"Qb.I.11"},{"$f":"Ripristini!E25","v":"Relazione geologica "},null,null,null,null,null,null,null,null,null,null,null,null,null,null,null,null,null,null,null,null,null,null,null,null,null,null,null,null,null,null,null,null,null,null,null,null,null,null,null,null,null,null,null,null,null,null,null,null,null,null,null,null,null,null,null,null,null,null,null,null,null,null,null,0,0,0]
[null,null,null,null,null,null,null,null,null,null,null,null,null,null,null,null,null,null,null,null,null,null,null,null,null,null,null,null,null,null,null,null,null,null,null,null,null,null,null,null,null,null,null,null,null,null,null,null,null,null,null,null,null,null,null,null,null,null,null,null,null,null,null,null,null,null,null,null,0,0,0]
[null,null,null,null,null,null,null,null,null,null,null,null,null,null,null,null,null,null,null,null,null,null,null,null,null,null,null,null,null,null,null,null,null,null,null,null,null,null,null,null,null,null,null,null,null,null,null,null,null,null,null,null,null,null,null,null,null,null,null,null,null,null,null,null,null,null,null,null,0,0,0]
[null,null,null,null,null,null,null,null,null,null,null,null,null,null,null,null,null,null,null,null,null,null,null,null,null,null,null,null,null,null,null,null,null,null,null,null,null,null,null,null,null,null,null,null,null,null,null,null,null,null,null,null,null,null,null,null,null,null,null,null,null,null,null,null,null,null,null,null,0,0,0]
[null,null,null,null,null,null,null,null,null,null,null,null,null,null,null,null,null,null,null,null,null,null,null,null,null,null,null,null,null,null,null,null,null,null,null,null,null,null,null,null,null,null,null,null,null,null,null,null,null,null,null,null,null,null,null,null,null,null,null,null,null,null,null,null,null,null,null,null,0,0,0]
[null,null,null,null,null,null,null,null,null,null,null,null,null,null,null,null,null,null,null,null,null,null,null,null,null,null,null,null,null,null,null,null,null,null,null,null,null,null,null,null,null,null,null,null,null,null,null,null,null,null,null,null,null,null,null,null,null,null,null,null,null,null,null,null,null,null,null,null,0,0,0]
[null,null,null,{"$f":"Ripristini!D31","v":"Qb.I.12"},{"$f":"Ripristini!E31","v":"Progettazione integrale e coordinata - Integrazione delle prestazioni specialistiche "},null,null,null,null,null,null,null,null,null,null,null,null,null,null,null,null,null,null,null,null,null,null,null,null,null,null,null,null,null,null,null,null,null,null,null,null,null,null,null,null,null,null,null,null,null,null,null,null,null,null,null,null,null,null,null,null,null,null,null,null,null,null,null,0,0,0]
[null,null,null,{"$f":"Ripristini!D32","v":"Qb.I.13"},{"$f":"Ripristini!E32","v":"Studio di inserimento urbanistico"},null,null,null,null,null,null,null,null,null,null,null,null,null,null,null,null,null,null,null,null,null,null,null,null,null,null,null,null,null,null,null,null,null,null,null,null,null,null,null,null,null,null,null,null,null,null,null,null,null,null,null,null,null,null,null,null,null,null,null,null,null,null,null,0,0,0]
[null,null,null,{"$f":"Ripristini!D33","v":"Qb.I.14"},{"$f":"Ripristini!E33","v":"Relazione tecnica sullo stato di consistenza degli immobili da ristrutturare "},null,null,null,null,null,null,null,null,null,null,null,null,null,null,null,null,null,null,null,null,null,null,null,null,null,null,null,null,null,null,null,null,null,null,null,null,null,null,null,null,null,null,null,null,null,null,null,null,null,null,null,null,null,null,null,null,null,null,null,null,null,null,null,0,0,0]
[null,null,null,{"$f":"Ripristini!D34","v":"Qb.I.15"},{"$f":"Ripristini!E34","v":"Prime indicazioni di progettazione antincendio (d.m. 6/02/1982)"},null,null,null,null,null,null,null,null,null,null,null,null,null,null,null,null,null,null,null,null,null,null,null,null,null,null,null,null,null,null,null,null,null,null,null,null,null,null,null,null,null,null,null,null,null,null,null,null,null,null,null,null,null,null,null,null,null,null,null,null,null,null,null,0,0,0]
[null,null,null,{"$f":"Ripristini!D35","v":"Qb.I.16"},{"$f":"Ripristini!E35","v":"Prime indicazioni e prescrizioni per la stesura dei Piani di Sicurezza (art. 17, comma 1, lettera f), d.P.R. 207/2010)"},null,null,null,null,null,null,null,null,null,null,null,null,null,null,null,null,null,null,null,null,null,null,null,null,null,null,null,null,null,null,null,null,null,null,null,null,null,null,null,null,null,null,null,null,null,null,null,null,null,null,null,null,null,null,null,null,null,null,null,null,null,null,null,0,0,0]
[null,null,null,{"$f":"Ripristini!D36","v":"Qb.I.17"},{"$f":"Ripristini!E36","v":"Studi di prefattibilità ambientale"},null,null,null,null,null,null,null,null,null,null,null,null,null,null,null,null,null,null,null,null,null,null,null,null,null,null,null,null,null,null,null,null,null,null,null,null,null,null,null,null,null,null,null,null,null,null,null,null,null,null,null,null,null,null,null,null,null,null,null,null,null,null,null,0,0,0]
[null,null,null,null,null,null,null,null,null,null,null,null,null,null,null,null,null,null,null,null,null,null,null,null,null,null,null,null,null,null,null,null,null,null,null,null,null,null,null,null,null,null,null,null,null,null,null,null,null,null,null,null,null,null,null,null,null,null,null,null,null,null,null,null,null,null,null,null,0,{"$f":"BQ37*BQ$138","v":0},{"$f":"BQ37+BR37","v":0}]
[null,null,null,null,null,null,null,null,null,null,null,null,null,null,null,null,null,null,null,null,null,null,null,null,null,null,null,null,null,null,null,null,null,null,null,null,null,null,null,null,null,null,null,null,null,null,null,null,null,null,null,null,null,null,null,null,null,null,null,null,null,null,null,null,null,null,null,null,0,0,0]
[null,null,null,{"$f":"Ripristini!D39","v":"Qb.I.18"},{"$f":"Ripristini!E39","v":"Piano di monitoraggio ambientale"},null,null,null,null,null,null,null,null,null,null,null,null,null,null,null,null,null,null,null,null,null,null,null,null,null,null,null,null,null,null,null,null,null,null,null,null,null,null,null,null,null,null,null,null,null,null,null,null,null,null,null,null,null,null,null,null,null,null,null,null,null,null,null,0,0,0]
[null,null,null,null,null,null,null,null,null,null,null,null,null,null,null,null,null,null,null,null,null,null,null,null,null,null,null,null,null,null,null,null,null,null,null,null,null,null,null,null,null,null,null,null,null,null,null,null,null,null,null,null,null,null,null,null,null,null,null,null,null,null,null,null,null,null,null,null,0,0,0]
[null,null,null,null,null,null,null,null,null,null,null,null,null,null,null,null,null,null,null,null,null,null,null,null,null,null,null,null,null,null,null,null,null,null,null,null,null,null,null,null,null,null,null,null,null,null,null,null,null,null,null,null,null,null,null,null,null,null,null,null,null,null,null,null,null,null,null,null,0,0,0]
[null,null,null,{"$f":"Ripristini!D42","v":"Qb.I.19"},{"$f":"Ripristini!E42","v":"Supporto al RUP: supervisione e coordinamento progettazione preliminare "},null,null,null,null,null,null,null,null,null,null,null,null,null,null,null,null,null,null,null,null,null,null,null,null,null,null,null,null,null,null,null,null,null,null,null,null,null,null,null,null,null,null,null,null,null,null,null,null,null,null,null,null,null,null,null,null,null,null,null,null,null,null,null,0,0,0]
[null,null,null,{"$f":"Ripristini!D43","v":"Qb.I.20"},{"$f":"Ripristini!E43","v":"Supporto al RUP: per la Verifica della progettazione preliminare"},null,null,null,null,null,null,null,null,null,null,null,null,null,null,null,null,null,null,null,null,null,null,null,null,null,null,null,null,null,null,null,null,null,null,null,null,null,null,null,null,null,null,null,null,null,null,null,null,null,null,null,null,null,null,null,null,null,null,null,null,null,null,null,0,0,0]
[null,null,"b.II) \nProgettazione definitiva \n(PD)",{"$f":"Ripristini!D44","v":"Qb.II.01"},{"$f":"Ripristini!E44","v":"Relazioni generale e tecniche, Elaborati grafici, Calcolo strutture e impianti.  Relazione su risoluzione delle interferenze e Relazione su gestione materie "},1,null,null,null,null,null,null,null,null,null,null,null,null,null,null,null,null,null,null,null,null,null,null,null,22509.004914875946,null,null,null,null,13527.017780761231,null,null,null,7987.1798277211392,null,12247.009069172414,null,null,null,null,null,null,null,null,null,null,null,null,null,null,null,null,null,null,null,null,null,null,null,null,null,null,null,56270.21159253073,13975.505313469776,70245.716906000511]
[null,null,null,{"$f":"Ripristini!D45","v":"Qb.II.02"},{"$f":"Ripristini!E45","v":"Rilievi dei manufatti (art. 243, comma 1, lettera c),  e art. 28, d.P.R. 207/2010)"},null,null,null,null,null,null,null,null,null,null,null,null,null,null,null,null,null,null,null,null,null,null,null,null,null,null,null,null,null,null,null,null,null,null,null,null,null,null,null,null,null,null,null,null,null,null,null,null,null,null,null,null,null,null,null,null,null,null,null,null,null,null,null,0,0,0]
[null,null,null,{"$f":"Ripristini!D46","v":"Qb.II.03"},{"$f":"Ripristini!E46","v":"Disciplinare descrittivo e prestazionale (art. 24, co. 2, lett. g), d.P.R. 207/2010)"},1,null,null,null,null,null,null,null,null,null,null,null,null,null,null,null,null,null,null,null,null,null,null,null,978.65234797543053,null,null,null,null,751.50094116074786,null,null,null,499.1987392325712,null,765.4380668232759,null,null,null,null,null,null,null,null,null,null,null,null,null,null,null,null,null,null,null,null,null,null,null,null,null,null,null,2994.7900951920255,743.79860504449289,3738.5887002365184]
[null,null,null,{"$f":"Ripristini!D47","v":"Qb.II.04"},{"$f":"Ripristini!E47","v":"Piano particellare d’esproprio (art. 24, comma 2, lettera i), d.P.R. 207/2010"},null,null,null,null,null,null,null,null,null,null,null,null,null,null,null,null,null,null,null,null,null,null,null,null,null,null,null,null,null,null,null,null,null,null,null,null,null,null,null,null,null,null,null,null,null,null,null,null,null,null,null,null,null,null,null,null,null,null,null,null,null,null,null,0,0,0]
[null,null,null,{"$f":"Ripristini!D48","v":"Qb.II.05"},{"$f":"Ripristini!E48","v":"Elenco prezzi unitari ed eventuali analisi, Computo metrico estimativo, Quadro economico (art. 24, comma 2, lettere l), m), o), d.P.R. 207/2010)"},1,null,null,null,null,null,null,null,null,null,null,null,null,null,null,null,null,null,null,null,null,null,null,null,6850.5666181162223,null,null,null,null,3006.0037646429914,null,null,null,3494.3912676110112,null,5358.066610336884,null,null,null,null,null,null,null,null,null,null,null,null,null,null,null,null,null,null,null,null,null,null,null,null,null,null,null,18709.028260707106,4646.6525798896309,23355.680840596739]
[null,null,null,{"$f":"Ripristini!D49","v":"Qb.II.06"},{"$f":"Ripristini!E49","v":"Studio di inserimento urbanistico (art. 24, comma 2, lettera c), d.P.R. 207/2010)"},1,null,null,null,null,null,null,null,null,null,null,null,null,null,null,null,null,null,null,null,null,null,null,null,2935.9570439262916,null,null,null,null,2254.5028234822435,null,null,null,499.1987392325712,null,765.4380668232759,null,null,null,null,null,null,null,null,null,null,null,null,null,null,null,null,null,null,null,null,null,null,null,null,null,null,null,6455.0966734643825,1603.2148326049194,8058.3115060693017]
[null,null,null,{"$f":"Ripristini!D50","v":"Qb.II.07"},{"$f":"Ripristini!E50","v":"Rilievi planoaltimetrici (art. 24, comma 2, lettera c), d.P.R. 207/2010)"},1,null,null,null,null,null,null,null,null,null,null,null,null,null,null,null,null,null,null,null,null,null,null,null,1957.3046959508611,null,null,null,null,1503.0018823214957,null,null,null,998.3974784651424,null,1530.8761336465518,null,null,null,null,null,null,null,null,null,null,null,null,null,null,null,null,null,null,null,null,null,null,null,null,null,null,null,5989.5801903840511,1487.5972100889858,7477.1774004730369]
[null,null,null,{"$f":"Ripristini!D51","v":"Qb.II.08"},"Schema di contratto, Capitolato speciale d'appalto (art. 24, co. 3, d.P.R. 207/2010)",null,null,null,null,null,null,null,null,null,null,null,null,null,null,null,null,null,null,null,null,null,null,null,null,null,null,null,null,null,null,null,null,null,null,null,null,null,null,null,null,null,null,null,null,null,null,null,null,null,null,null,null,null,null,null,null,null,null,null,null,null,null,null,0,0,0]
[null,null,null,{"$f":"Ripristini!D52","v":"Qb.II.09"},{"$f":"Ripristini!E52","v":"Relazione geotecnica (art. 26, comma 1, d.P.R. 207/2010)"},null,null,null,null,null,null,null,null,null,null,null,null,null,null,null,null,null,null,null,null,null,null,null,null,null,null,null,null,null,null,null,null,null,null,null,null,null,null,null,null,null,null,null,null,null,null,null,null,null,null,null,null,null,null,null,null,null,null,null,null,null,null,null,0,0,0]
[null,null,null,{"$f":"Ripristini!D53","v":"Qb.II.10"},{"$f":"Ripristini!E53","v":"Relazione idrologica (art. 26, comma 1, d.P.R. 207/2010)"},1,null,null,null,null,null,null,null,null,null,null,null,null,null,null,null,null,null,null,null,null,null,null,null,2935.9570439262916,null,null,null,null,null,null,null,null,null,null,2296.3142004698279,null,null,null,null,null,null,null,null,null,null,null,null,null,null,null,null,null,null,null,null,null,null,null,null,null,null,null,5232.2712443961191,1299.5087899630264,6531.7800343591452]
[null,null,null,{"$f":"Ripristini!D54","v":"Qb.II.11"},{"$f":"Ripristini!E54","v":"Relazione idraulica (art. 26, comma 1, d.P.R. 207/2010)"},1,null,null,null,null,null,null,null,null,null,null,null,null,null,null,null,null,null,null,null,null,null,null,null,2935.9570439262916,null,null,null,null,2254.5028234822435,null,null,null,1497.5962176977137,null,2296.3142004698279,null,null,null,null,null,null,null,null,null,null,null,null,null,null,null,null,null,null,null,null,null,null,null,null,null,null,null,8984.3702855760766,2231.3958151334787,11215.766100709556]
[null,null,null,{"$f":"Ripristini!D55","v":"Qb.II.12"},{"$f":"Ripristini!E55","v":"Relazione sismica e sulle strutture (art.26 , comma 1, d.P.R. 207/10)"},1,null,null,null,null,null,null,null,null,null,null,null,null,null,null,null,null,null,null,null,null,null,null,null,2935.9570439262916,null,null,null,null,2254.5028234822435,null,null,null,1497.5962176977137,null,2296.3142004698279,null,null,null,null,null,null,null,null,null,null,null,null,null,null,null,null,null,null,null,null,null,null,null,null,null,null,null,8984.3702855760766,2231.3958151334787,11215.766100709556]
[null,null,null,{"$f":"Ripristini!D56","v":"Qb.II.13"},{"$f":"Ripristini!E56","v":"Relazione geologica"},1,null,null,null,null,null,null,null,null,null,null,null,null,null,null,null,null,null,null,null,null,null,null,null,2971.95020837833,null,null,null,null,2323.2572656321558,null,null,null,1101.9546883620803,null,1689.663855488523,null,null,null,null,null,null,null,null,null,null,null,null,null,null,null,null,null,null,null,null,null,null,null,null,null,null,null,8086.826017861089,2008.4779634403426,10095.303981301431]
[null,null,null,null,null,null,null,null,null,null,null,null,null,null,null,null,null,null,null,null,null,null,null,null,null,null,null,null,null,null,null,null,null,null,null,null,null,null,null,null,null,null,null,null,null,null,null,null,null,null,null,null,null,null,null,null,null,null,null,null,null,null,null,null,null,null,null,null,0,0,0]
[null,null,null,null,null,null,null,null,null,null,null,null,null,null,null,null,null,null,null,null,null,null,null,null,null,null,null,null,null,null,null,null,null,null,null,null,null,null,null,null,null,null,null,null,null,null,null,null,null,null,null,null,null,null,null,null,null,null,null,null,null,null,null,null,null,null,null,null,0,0,0]
[null,null,null,null,null,null,null,null,null,null,null,null,null,null,null,null,null,null,null,null,null,null,null,null,null,null,null,null,null,null,null,null,null,null,null,null,null,null,null,null,null,null,null,null,null,null,null,null,null,null,null,null,null,null,null,null,null,null,null,null,null,null,null,null,null,null,null,null,0,0,0]
[null,null,null,null,null,null,null,null,null,null,null,null,null,null,null,null,null,null,null,null,null,null,null,null,null,null,null,null,null,null,null,null,null,null,null,null,null,null,null,null,null,null,null,null,null,null,null,null,null,null,null,null,null,null,null,null,null,null,null,null,null,null,null,null,null,null,null,null,0,0,0]
[null,null,null,null,null,null,null,null,null,null,null,null,null,null,null,null,null,null,null,null,null,null,null,null,null,null,null,null,null,null,null,null,null,null,null,null,null,null,null,null,null,null,null,null,null,null,null,null,null,null,null,null,null,null,null,null,null,null,null,null,null,null,null,null,null,null,null,null,0,0,0]
[null,null,null,"Qb.II.14","Analisi storico critica e relazione sulle strutture esistenti ",null,null,null,null,null,null,null,null,null,null,null,null,null,null,null,null,null,null,null,null,null,null,null,null,null,null,null,null,null,null,null,null,null,null,null,null,null,null,null,null,null,null,null,null,null,null,null,null,null,null,null,null,null,null,null,null,null,null,null,null,null,null,null,0,0,0]
[null,null,null,"Qb.II.15","Relazione sulle indagini dei materiali e delle strutture per edifici esistenti ",null,null,null,null,null,null,null,null,null,null,null,null,null,null,null,null,null,null,null,null,null,null,null,null,null,null,null,null,null,null,null,null,null,null,null,null,null,null,null,null,null,null,null,null,null,null,null,null,null,null,null,null,null,null,null,null,null,null,null,null,null,null,null,0,0,0]
[null,null,null,"Qb.II.16","Verifica sismica delle strutture esistenti e individuazione delle carenze strutturali ",null,null,null,null,null,null,null,null,null,null,null,null,null,null,null,null,null,null,null,null,null,null,null,null,null,null,null,null,null,null,null,null,null,null,null,null,null,null,null,null,null,null,null,null,null,null,null,null,null,null,null,null,null,null,null,null,null,null,null,null,null,null,null,0,0,0]
[null,null,null,"Qb.II.17","Progettazione integrale e coordinata - Integrazione delle prestazioni specialistiche",1,null,null,null,null,null,null,null,null,null,null,null,null,null,null,null,null,null,null,null,null,null,null,null,4893.2619221653613,null,null,null,null,3757.5048457817006,null,null,null,2495.993789145869,null,3827.1904766903326,null,null,null,null,null,null,null,null,null,null,null,null,null,null,null,null,null,null,null,null,null,null,null,null,null,null,null,14973.951033783262,3718.9931637657528,18692.944197549015]
[null,null,null,"Qb.II.18","Elaborati di progettazione antincendio (d.m. 16/02/1982)",1,null,null,null,null,null,null,null,null,null,null,null,null,null,null,null,null,null,null,null,null,null,null,null,5871.9140878525832,null,null,null,null,4509.0056469644869,null,null,null,2995.1924353954273,null,4592.6284009396559,null,null,null,null,null,null,null,null,null,null,null,null,null,null,null,null,null,null,null,null,null,null,null,null,null,null,null,17968.740571152153,4462.7916302669573,22431.532201419112]
[null,null,null,"Qb.II.19","Relazione paesaggistica (d.lgs. 42/2004)",null,null,null,null,null,null,null,null,null,null,null,null,null,null,null,null,null,null,null,null,null,null,null,null,null,null,null,null,null,null,null,null,null,null,null,null,null,null,null,null,null,null,null,null,null,null,null,null,null,null,null,null,null,null,null,null,null,null,null,null,null,null,null,0,0,0]
[null,null,null,"Qb.II.20","Elaborati e relazioni per requisiti acustici (legge 447/1995 - d.p.c.m. 512/1997)",null,null,null,null,null,null,null,null,null,null,null,null,null,null,null,null,null,null,null,null,null,null,null,null,null,null,null,null,null,null,null,null,null,null,null,null,null,null,null,null,null,null,null,null,null,null,null,null,null,null,null,null,null,null,null,null,null,null,null,null,null,null,null,0,0,0]
[null,null,null,"Qb.II.21","Relazione energetica (ex legge 10/1991 e s.m.i.)",1,null,null,null,null,null,null,null,null,null,null,null,null,null,null,null,null,null,null,null,null,null,null,null,2935.9570439262916,null,null,null,null,2254.5028234822435,null,null,null,1497.5962176977137,null,2296.3142004698279,null,null,null,null,null,null,null,null,null,null,null,null,null,null,null,null,null,null,null,null,null,null,null,null,null,null,null,8984.3702855760766,{"$f":"BQ69*BQ$138","v":2231.3958151334787},{"$f":"BQ69+BR69","v":11215.766100709556}]
[null,null,null,"Qb.II.22","Diagnosi energetica (ex legge 10/1991) edifici esistenti, esclusi i rilievi e le indagini",null,null,null,null,null,null,null,null,null,null,null,null,null,null,null,null,null,null,null,null,null,null,null,null,null,null,null,null,null,null,null,null,null,null,null,null,null,null,null,null,null,null,null,null,null,null,null,null,null,null,null,null,null,null,null,null,null,null,null,null,null,null,null,{"$f":"SUM(K70:BP70)","v":0},{"$f":"BQ70*BQ$138","v":0},0]
[null,null,null,"Qb.II.23","Aggiornamento delle prime indicazioni e prescrizioni per la redazione del PSC",1,null,null,null,null,null,null,null,null,null,null,null,null,null,null,null,null,null,null,null,null,null,null,null,978.65234797543053,null,null,null,null,751.50094116074786,null,null,null,499.1987392325712,null,765.4380668232759,null,null,null,null,null,null,null,null,null,null,null,null,null,null,null,null,null,null,null,null,null,null,null,null,null,null,null,2994.7900951920255,{"$f":"BQ71*BQ$138","v":743.79860504449289},3738.5887002365184]
[null,null,null,"Qb.II.24","Studio impatto ambientale o fattibilità ambientale (VIA-VAS- AIA) ",null,null,null,null,null,null,null,null,null,null,null,null,null,null,null,null,null,null,null,null,null,null,null,null,null,null,null,null,null,null,null,null,null,null,null,null,null,null,null,null,null,null,null,null,null,null,null,null,null,null,null,null,null,null,null,null,null,null,null,null,null,null,null,0,{"$f":"BQ72*BQ$138","v":0},0]
[]
[null,null,null,null,null,null,null,null,null,null,null,null,null,null,null,null,null,null,null,null,null,null,null,null,null,null,null,null,null,null,null,null,null,null,null,null,null,null,null,null,null,null,null,null,null,null,null,null,null,null,null,null,null,null,null,null,null,null,null,null,null,null,null,null,null,null,null,null,0,{"$f":"BQ74*BQ$138","v":0},0]
[null,null,null,"Qb.II.25","Piano di monitoraggio ambientale",null,null,null,null,null,null,null,null,null,null,null,null,null,null,null,null,null,null,null,null,null,null,null,null,null,null,null,null,null,null,null,null,null,null,null,null,null,null,null,null,null,null,null,null,null,null,null,null,null,null,null,null,null,null,null,null,null,null,null,null,null,null,null,0,{"$f":"BQ75*BQ$138","v":0},0]
[]
[null,null,null,null,null,null,null,null,null,null,null,null,null,null,null,null,null,null,null,null,null,null,null,null,null,null,null,null,null,null,null,null,null,null,null,null,null,null,null,null,null,null,null,null,null,null,null,null,null,null,null,null,null,null,null,null,null,null,null,null,null,null,null,null,null,null,null,null,0,{"$f":"BQ77*BQ$138","v":0},0]
[null,null,null,{"$f":"Ripristini!D78","v":"Qb.II.26"},{"$f":"Ripristini!E78","v":"Supporto al RUP: supervisione e coordinamento progettazione definitiva"},null,null,null,null,null,null,null,null,null,null,null,null,null,null,null,null,null,null,null,null,null,null,null,null,null,null,null,null,null,null,null,null,null,null,null,null,null,null,null,null,null,null,null,null,null,null,null,null,null,null,null,null,null,null,null,null,null,null,null,null,null,null,null,0,0,0]
[null,null,null,{"$f":"Ripristini!D79","v":"Qb.II.27"},{"$f":"Ripristini!E79","v":"Supporto al RUP: per la Verifica della progettazione definitiva "},null,null,null,null,null,null,null,null,null,null,null,null,null,null,null,null,null,null,null,null,null,null,null,null,null,null,null,null,null,null,null,null,null,null,null,null,null,null,null,null,null,null,null,null,null,null,null,null,null,null,null,null,null,null,null,null,null,null,null,null,null,null,null,0,0,0]
[null,null,"b.III) \nProgettazione esecutiva \n(PE)",{"$f":"Ripristini!D80","v":"Qb.III.01"},{"$f":"Ripristini!E80","v":"Relazione generale e specialistiche, Elaborati grafici, Calcoli esecutivi (art. 33, comma 1, lettere a), b), c), d), d.P.R. 207/2010)"},1,null,null,null,null,null,null,null,null,null,null,null,null,null,null,null,null,null,null,null,null,null,null,null,6850.5666181162223,null,null,null,null,9018.0112939289738,null,null,null,7487.9815534036334,null,11481.571715218906,null,null,null,null,null,null,null,null,null,null,null,null,null,null,null,null,null,null,null,null,null,null,null,null,null,null,null,34838.13118066774,8652.5441018851125,43490.675282552853,null,null,null,null,null,null,null,null,null,null,null,null,null,null,null,null,null,null,null,null,null,null,null,null,null,null,null,null,null,null,null,null,null,null,null,null,null,null,null,null,null,null,0]
[null,null,null,{"$f":"Ripristini!D81","v":"Qb.III.02"},{"$f":"Ripristini!E81","v":"Particolari costruttivi e decorativi (art. 36, comma 1, lettera c), d.P.R. 207/2010)"},1,null,null,null,null,null,null,null,null,null,null,null,null,null,null,null,null,null,null,null,null,null,null,null,12722.480341392387,null,null,null,null,9769.5120951117606,null,null,null,2495.993789145869,null,3827.1904766903326,null,null,null,null,null,null,null,null,null,null,null,null,null,null,null,null,null,null,null,null,null,null,null,null,null,null,null,28815.176702340348,7156.6579139287087,35971.834616269058]
[null,null,null,{"$f":"Ripristini!D82","v":"Qb.III.03"},{"$f":"Ripristini!E82","v":"Computo metrico estimativo, Quadro economico, Elenco prezzi, analisi, Quadro dell'incidenza percentuale della quantità di manodopera (art. 33, comma 1, lettere f), g), i), d.P.R. 207/2010)"},1,null,null,null,null,null,null,null,null,null,null,null,null,null,null,null,null,null,null,null,null,null,null,null,3914.6093919017221,null,null,null,null,2254.5028234822435,null,null,null,2495.993789145869,null,3827.1904766903326,null,null,null,null,null,null,null,null,null,null,null,null,null,null,null,null,null,null,null,null,null,null,null,null,null,null,null,12492.296481220168,3102.639050212967,15594.935531433135,null,null,null,null,null,null,null,null,null,null,null,null,null,null,null,null,null,null,null,null,null,null,null,null,null,null,null,null,null,null,null,null,null,null,null,null,null,null,null,null,9673.4300836288185,null,0]
[null,null,null,{"$f":"Ripristini!D83","v":"Qb.III.04"},{"$f":"Ripristini!E83","v":"Schema di contratto, capitolato speciale d'appalto, cronoprogramma "},1,null,null,null,null,null,null,null,null,null,null,null,null,null,null,null,null,null,null,null,null,null,null,null,1957.3046959508611,null,null,null,null,751.50094116074786,null,null,null,998.3974784651424,null,1530.8761336465518,null,null,null,null,null,null,null,null,null,null,null,null,null,null,null,null,null,null,null,null,null,null,null,null,null,null,null,5238.0792492233031,1300.9512903557875,6539.0305395790911]
[null,null,null,{"$f":"Ripristini!D84","v":"Qb.III.05"},{"$f":"Ripristini!E84","v":"Piano di manutenzione dell'opera (art. 33, comma 1, lettera e), d.P.R. 207/2010)"},1,null,null,null,null,null,null,null,null,null,null,null,null,null,null,null,null,null,null,null,null,null,null,null,1957.3046959508611,null,null,null,null,1878.7524228908503,null,null,null,1497.5962176977137,null,2296.3142004698279,null,null,null,null,null,null,null,null,null,null,null,null,null,null,null,null,null,null,null,null,null,null,null,null,null,null,null,7629.9675370092536,1895.0106786026208,9524.9782156118745,null,null,null,null,null,null,null,null,null,null,null,null,null,null,null,null,null,null,null,null,null,null,null,null,null,null,null,null,null,null,null,null,null,null,null,null,null,null,null,null,4836.7150418144092,null,0]
[null,null,null,{"$f":"Ripristini!D85","v":"Qb.III.06"},{"$f":"Ripristini!E85","v":"Progettazione integrale e coordinata - Integrazione delle prestazioni specialistiche"},1,null,null,null,null,null,null,null,null,null,null,null,null,null,null,null,null,null,null,null,null,null,null,null,2935.9570439262916,null,null,null,null,2254.5028234822435,null,null,null,1497.5962176977137,null,2296.3142004698279,null,null,null,null,null,null,null,null,null,null,null,null,null,null,null,null,null,null,null,null,null,null,null,null,null,null,null,8984.3702855760766,2231.3958151334787,11215.766100709556,null,null,null,null,null,null,null,null,null,null,null,null,null,null,null,null,null,null,null,null,null,null,null,null,null,null,null,null,null,null,null,null,null,null,null,null,null,null,null,null,7255.0725627216143,null,0]
[null,null,null,{"$f":"Ripristini!D86","v":"Qb.III.07"},{"$f":"Ripristini!E86","v":"Piano di Sicurezza e Coordinamento (artt. 91 e 100 d.lgs. n. 81/2008)"},1,null,null,null,null,null,null,null,null,null,null,null,null,null,null,null,null,null,null,null,null,null,null,null,9786.5238443307226,null,null,null,null,7515.0096915634012,null,null,null,4991.9875782917379,null,7654.3809533806652,null,null,null,null,null,null,null,null,null,null,null,null,null,null,null,null,null,null,null,null,null,null,null,null,null,null,null,29947.902067566523,7437.9863275315056,37385.888395098031]
[null,null,null,{"$f":"Ripristini!D87","v":"Qb.III.08"},{"$f":"Ripristini!E87","v":"Supporto al RUP: supervisione e coordinamento progettazione esecutiva"},null,null,null,null,null,null,null,null,null,null,null,null,null,null,null,null,null,null,null,null,null,null,null,null,null,null,null,null,null,null,null,null,null,null,null,null,null,null,null,null,null,null,null,null,null,null,null,null,null,null,null,null,null,null,null,null,null,null,null,null,null,null,null,0,0,0]
[null,null,null,{"$f":"Ripristini!D88","v":"Qb.III.09"},{"$f":"Ripristini!E88","v":"Supporto al RUP: per la Verifica della progettazione esecutiva"},null,null,null,null,null,null,null,null,null,null,null,null,null,null,null,null,null,null,null,null,null,null,null,null,null,null,null,null,null,null,null,null,null,null,null,null,null,null,null,null,null,null,null,null,null,null,null,null,null,null,null,null,null,null,null,null,null,null,null,null,null,null,null,0,0,0]
[null,null,null,{"$f":"Ripristini!D89","v":"Qb.III.10"},{"$f":"Ripristini!E89","v":"Supporto al RUP: per la programmazione e progettazione appalto"},null,null,null,null,null,null,null,null,null,null,null,null,null,null,null,null,null,null,null,null,null,null,null,null,null,null,null,null,null,null,null,null,null,null,null,null,null,null,null,null,null,null,null,null,null,null,null,null,null,null,null,null,null,null,null,null,null,null,null,null,null,null,null,0,0,0]
[null,null,null,{"$f":"Ripristini!D90","v":"Qb.III.11"},{"$f":"Ripristini!E90","v":"Supporto al RUP: per la Validazione del progetto"},null,null,null,null,null,null,null,null,null,null,null,null,null,null,null,null,null,null,null,null,null,null,null,null,null,null,null,null,null,null,null,null,null,null,null,null,null,null,null,null,null,null,null,null,null,null,null,null,null,null,null,null,null,null,null,null,null,null,null,null,null,null,null,0,0,0]
[null,"DIREZIONE DELL'ESECUZIONE","c.I) \nDirezione dei lavori \n(DL)",{"$f":"Ripristini!D91","v":"Qc.I.01"},{"$f":"Ripristini!E91","v":"Direzione lavori, assistenza collaudo, prove accettazione "},1,null,null,null,null,null,null,null,null,null,null,null,null,null,null,null,null,null,null,null,null,null,null,null,31316.875135213777,null,null,null,null,28557.036044064338,null,null,null,15974.359655442278,null,24494.018138344829,null,null,null,null,null,null,null,null,null,null,null,null,null,null,null,null,null,null,null,null,null,null,null,null,null,null,null,100342.28897306524,24921.430949353988,125263.71992241923]
[null,null,null,{"$f":"Ripristini!D92","v":"Qc.I.02"},{"$f":"Ripristini!E92","v":"Liquidazione Rendicontaz. liquidazione tecnico contabile"},1,null,null,null,null,null,null,null,null,null,null,null,null,null,null,null,null,null,null,null,null,null,null,null,2935.9570439262916,null,null,null,null,1503.0018823214957,null,null,null,1497.5962176977137,null,2296.3142004698279,null,null,null,null,null,null,null,null,null,null,null,null,null,null,null,null,null,null,null,null,null,null,null,null,null,null,null,8232.8693444153287,2044.7498954002804,10277.619239815609,null,null,null,null,null,null,null,null,null,null,null,null,null,null,null,null,null,null,null,null,null,null,null,null,null,null,null,null,null,null,null,null,null,null,null,null,null,null,null,null,null,null,0]
[null,null,null,{"$f":"Ripristini!D93","v":"Qc.I.03"},{"$f":"Ripristini!E93","v":"Controllo aggiornamento elaborati di progetto, aggiornamento dei manuali d'uso e manutenzione (art. 148, comma 4, d.P.R. 207/2010)"},1,null,null,null,null,null,null,null,null,null,null,null,null,null,null,null,null,null,null,null,null,null,null,null,1957.3046959508611,null,null,null,null,1503.0018823214957,null,null,null,998.3974784651424,null,1530.8761336465518,null,null,null,null,null,null,null,null,null,null,null,null,null,null,null,null,null,null,null,null,null,null,null,null,null,null,null,5989.5801903840511,1487.5972100889858,7477.1774004730369]
[null,null,null,{"$f":"Ripristini!D94","v":"Qc.I.04"},{"$f":"Ripristini!E94","v":"Coordinamento e supervisione dell'ufficio di direzione lavori"},1,null,null,null,null,null,null,null,null,null,null,null,null,null,null,null,null,null,null,null,null,null,null,null,1957.3046959508611,null,null,null,null,1503.0018823214957,null,null,null,998.3974784651424,null,1530.8761336465518,null,null,null,null,null,null,null,null,null,null,null,null,null,null,null,null,null,null,null,null,null,null,null,null,null,null,null,5989.5801903840511,1487.5972100889858,7477.1774004730369]
[null,null,null,{"$f":"Ripristini!D95","v":"Qc.I.05"},{"$f":"Ripristini!E95","v":"Ufficio della DL, per ogni direttore operativo"},null,null,null,null,null,null,null,null,null,null,null,null,null,null,null,null,null,null,null,null,null,null,null,null,null,null,null,null,null,null,null,null,null,null,null,null,null,null,null,null,null,null,null,null,null,null,null,null,null,null,null,null,null,null,null,null,null,null,null,null,null,null,null,0,0,0]
[null,null,null,{"$f":"Ripristini!D96","v":"Qc.I.05.01"},{"$f":"Ripristini!E96","v":"Ufficio della DL, per direttore operativo “GEOLOGO”"},null,null,null,null,null,null,null,null,null,null,null,null,null,null,null,null,null,null,null,null,null,null,null,null,null,null,null,null,null,null,null,null,null,null,null,null,null,null,null,null,null,null,null,null,null,null,null,null,null,null,null,null,null,null,null,null,null,null,null,null,null,null,null,0,0,0]
[null,null,null,null,null,null,null,null,null,null,null,null,null,null,null,null,null,null,null,null,null,null,null,null,null,null,null,null,null,null,null,null,null,null,null,null,null,null,null,null,null,null,null,null,null,null,null,null,null,null,null,null,null,null,null,null,null,null,null,null,null,null,null,null,null,null,null,null,0,0,0]
[null,null,null,null,null,null,null,null,null,null,null,null,null,null,null,null,null,null,null,null,null,null,null,null,null,null,null,null,null,null,null,null,null,null,null,null,null,null,null,null,null,null,null,null,null,null,null,null,null,null,null,null,null,null,null,null,null,null,null,null,null,null,null,null,null,null,null,null,0,0,0]
[null,null,null,null,null,null,null,null,null,null,null,null,null,null,null,null,null,null,null,null,null,null,null,null,null,null,null,null,null,null,null,null,null,null,null,null,null,null,null,null,null,null,null,null,null,null,null,null,null,null,null,null,null,null,null,null,null,null,null,null,null,null,null,null,null,null,null,null,0,0,0]
[null,null,null,null,null,null,null,null,null,null,null,null,null,null,null,null,null,null,null,null,null,null,null,null,null,null,null,null,null,null,null,null,null,null,null,null,null,null,null,null,null,null,null,null,null,null,null,null,null,null,null,null,null,null,null,null,null,null,null,null,null,null,null,null,null,null,null,null,0,0,0]
[null,null,null,null,null,null,null,null,null,null,null,null,null,null,null,null,null,null,null,null,null,null,null,null,null,null,null,null,null,null,null,null,null,null,null,null,null,null,null,null,null,null,null,null,null,null,null,null,null,null,null,null,null,null,null,null,null,null,null,null,null,null,null,null,null,null,null,null,0,0,{"$f":"BQ101+BR101","v":0}]
[null,null,null,{"$f":"Ripristini!D102","v":"Qc.I.06"},{"$f":"Ripristini!E102","v":"Ufficio della DL, per ogni ispettore di cantiere "},null,null,null,null,null,null,null,null,null,null,null,null,null,null,null,null,null,null,null,null,null,null,null,null,null,null,null,null,null,null,null,null,null,null,null,null,null,null,null,null,null,null,null,null,null,null,null,null,null,null,null,null,null,null,null,null,null,null,null,null,null,null,null,0,0,0]
["                                                   ",null,null,{"$f":"Ripristini!D103","v":"Qc.I.07"},{"$f":"Ripristini!E103","v":"Variante delle quantità del progetto in corso d'opera "},1,null,null,null,null,null,null,null,null,null,null,null,null,null,null,null,null,null,null,null,null,null,null,null,13701.133236232445,null,null,null,null,6763.5088903806154,null,null,null,7487.9815534036334,null,11481.571715218906,null,null,null,null,null,null,null,null,null,null,null,null,null,null,null,null,null,null,null,null,null,null,null,null,null,null,null,39434.195395235598,9794.041850585023,49228.237245820623]
[null,null,null,{"$f":"Ripristini!D104","v":"Qc.I.08"},{"$f":"Ripristini!E104","v":"Variante del progetto in corso d'opera "},null,null,null,null,null,null,null,null,null,null,null,null,null,null,null,null,null,null,null,null,null,null,null,null,null,null,null,null,null,null,null,null,null,null,null,null,null,null,null,null,null,null,null,null,null,null,null,null,null,null,null,null,null,null,null,null,null,null,null,null,null,null,null,0,0,0]
["                ",null,null,{"$f":"Ripristini!D105","v":"Qc.I.09"},{"$f":"Ripristini!E105","v":"Contabilità dei lavori a MISURA"},null,null,null,null,null,null,null,null,null,null,null,null,null,null,null,null,null,null,null,null,null,null,null,null,null,null,null,null,null,null,null,null,null,null,null,null,null,null,null,null,null,null,null,null,null,null,null,null,null,null,null,null,null,null,null,null,null,null,null,null,null,null,null,0,0,0]
[null,null,null,{"$f":"Ripristini!D106","v":0},null,null,null,null,null,null,null,null,null,null,null,null,null,null,null,null,null,null,null,null,null,null,null,null,null,null,null,null,null,null,null,null,null,null,null,null,null,null,null,null,null,null,null,null,null,null,null,null,null,null,null,null,null,null,null,null,null,null,null,null,null,null,null,null,0,0,0]
[null,null,null,{"$f":"Ripristini!D107","v":"Qc.I.10"},{"$f":"Ripristini!E107","v":"Contabilità dei lavori a CORPO"},1,null,null,null,null,null,null,null,null,null,null,null,null,null,null,null,null,null,null,null,null,null,null,null,7469.2895246438347,null,null,null,null,5324.4642340435821,null,null,null,2565.0318770066738,null,3933.0488780768997,null,null,null,null,null,null,null,null,null,null,null,null,null,null,null,null,null,null,null,null,null,null,null,null,null,null,null,19291.834513770991,4791.4007806854306,24083.235294456423]
[null,null,null,null,null,null,null,null,null,null,null,null,null,null,null,null,null,null,null,null,null,null,null,null,null,null,null,null,null,null,null,null,null,null,null,null,null,null,null,null,null,null,null,null,null,null,null,null,null,null,null,null,null,null,null,null,null,null,null,null,null,null,null,null,null,null,null,null,0,0,0]
[null,null,null,{"$f":"Ripristini!D109","v":"Qc.I.11"},{"$f":"Ripristini!E109","v":"Certificato di regolare esecuzione (art. 237, d.P.R. 207/2010)"},null,null,null,null,null,null,null,null,null,null,null,null,null,null,null,null,null,null,null,null,null,null,null,null,null,null,null,null,null,null,null,null,null,null,null,null,null,null,null,null,null,null,null,null,null,null,null,null,null,null,null,null,null,null,null,null,null,null,null,null,null,null,null,0,{"$f":"BQ109*BQ$138","v":0},0]
[null,null,null,{"$f":"Ripristini!D110","v":"Qc.I.12"},{"$f":"Ripristini!E110","v":"Coordinamento della sicurezza in esecuzione (art. 92 d.lgs. n. 81/2008)"},1,null,null,null,null,null,null,null,null,null,null,null,null,null,null,null,null,null,null,null,null,null,null,null,24466.309246250388,null,null,null,null,18787.523948952581,null,null,null,12479.96875976332,null,19135.952098303758,null,null,null,null,null,null,null,null,null,null,null,null,null,null,null,null,null,null,null,null,null,null,null,null,null,null,null,74869.754053270037,18594.965541742185,93464.719595012226]
[null,null,null,"Qc.I.13",{"$f":"Ripristini!E111","v":"Supporto al RUP: supervisione e coordinamento della D.L. e del C.S.E."},1,null,null,null,null,null,null,null,null,null,null,null,null,null,null,null,null,null,null,null,null,null,null,null,null,null,null,null,null,null,null,null,null,null,null,null,null,null,null,null,null,null,null,null,null,null,null,null,null,null,null,null,null,null,null,null,null,null,null,null,null,null,null,0,0,0]
[null,null,null,"Qd.I.01","Collaudo tecnico amministrativo ( Parte II, Titolo X, d.P.R. 207/2010) ",null,null,null,null,null,null,null,null,null,null,null,null,null,null,null,null,null,null,null,null,null,null,null,null,null,null,null,null,null,null,null,null,null,null,null,null,null,null,null,null,null,null,null,null,null,null,null,null,null,null,null,null,null,null,null,null,null,null,null,null,null,null,null,0,0,0]
[null,"COLLAUDO \n(COL)  ",null,"Qd.I.02","Revisione tecnico contabile (Parte II, Titolo X, d.P.R. 207/2010)",null,null,null,null,null,null,null,null,null,null,null,null,null,null,null,null,null,null,null,null,null,null,null,null,null,null,null,null,null,null,null,null,null,null,null,null,null,null,null,null,null,null,null,null,null,null,null,null,null,null,null,null,null,null,null,null,null,null,null,null,null,null,null,0,0,0]
[null,null,null,"Qd.I.03","Collaudo statico (Capitolo 9, d.m. 14/01/2008)",null,null,null,null,null,null,null,null,null,null,null,null,null,null,null,null,null,null,null,null,null,null,null,null,null,null,null,null,null,null,null,null,null,null,null,null,null,null,null,null,null,null,null,null,null,null,null,null,null,null,null,null,null,null,null,null,null,null,null,null,null,null,null,0,0,0]
[null,null,null,"Qd.I.04","Collaudo tecnico funzionale degli impianti (d.m. 22/01/2008, n. 37)",null,null,null,null,null,null,null,null,null,null,null,null,null,null,null,null,null,null,null,null,null,null,null,null,null,null,null,null,null,null,null,null,null,null,null,null,null,null,null,null,null,null,null,null,null,null,null,null,null,null,null,null,null,null,null,null,null,null,null,null,null,null,null,0,0,0]
[null,null,null,"Qd.I.05","Attestato di certificazione energetica (art. 6 d.lgs. 311/2006) \nEsclusa diagnosi energetica         ",null,null,null,null,null,null,null,null,null,null,null,null,null,null,null,null,null,null,null,null,null,null,null,null,null,null,null,null,null,null,null,null,null,null,null,null,null,null,null,null,null,null,null,null,null,null,null,null,null,null,null,null,null,null,null,null,null,null,null,null,null,null,null,0,0,0]
[null,"SUPPORTO AL RUP \n(RUP)",null,{"$f":"D7","v":"Qa.I.03"},{"$f":"E7","v":"Supporto al RUP: accertamenti e verifiche preliminari "},null,null,null,null,null,null,null,null,null,null,null,null,null,null,null,null,null,null,null,null,null,null,null,null,null,null,null,null,null,null,null,null,null,null,null,null,null,null,null,null,null,null,null,null,null,null,null,null,null,null,null,null,null,null,null,null,null,null,null,null,null,null,null,0,0,0]
[null,null,null,{"$f":"D42","v":"Qb.I.19"},{"$f":"E42","v":"Supporto al RUP: supervisione e coordinamento progettazione preliminare "},null,null,null,null,null,null,null,null,null,null,null,null,null,null,null,null,null,null,null,null,null,null,null,null,null,null,null,null,null,null,null,null,null,null,null,null,null,null,null,null,null,null,null,null,null,null,null,null,null,null,null,null,null,null,null,null,null,null,null,null,null,null,null,0,0,0]
[null,null,null,{"$f":"D78","v":"Qb.II.26"},{"$f":"E78","v":"Supporto al RUP: supervisione e coordinamento progettazione definitiva"},null,null,null,null,null,null,null,null,null,null,null,null,null,null,null,null,null,null,null,null,null,null,null,null,null,null,null,null,null,null,null,null,null,null,null,null,null,null,null,null,null,null,null,null,null,null,null,null,null,null,null,null,null,null,null,null,null,null,null,null,null,null,null,0,0,0]
[null,null,null,{"$f":"D87","v":"Qb.III.08"},{"$f":"E87","v":"Supporto al RUP: supervisione e coordinamento progettazione esecutiva"},null,null,null,null,null,null,null,null,null,null,null,null,null,null,null,null,null,null,null,null,null,null,null,null,null,null,null,null,null,null,null,null,null,null,null,null,null,null,null,null,null,null,null,null,null,null,null,null,null,null,null,null,null,null,null,null,null,null,null,null,null,null,null,0,0,0]
[null,null,null,{"$f":"D89","v":"Qb.III.10"},{"$f":"E89","v":"Supporto al RUP: per la programmazione e progettazione appalto"},null,null,null,null,null,null,null,null,null,null,null,null,null,null,null,null,null,null,null,null,null,null,null,null,null,null,null,null,null,null,null,null,null,null,null,null,null,null,null,null,null,null,null,null,null,null,null,null,null,null,null,null,null,null,null,null,null,null,null,null,null,null,null,0,0,0]
[null,null,null,{"$f":"D111","v":"Qc.I.13"},{"$f":"E111","v":"Supporto al RUP: supervisione e coordinamento della D.L. e del C.S.E."},null,null,null,null,null,null,null,null,null,null,null,null,null,null,null,null,null,null,null,null,null,null,null,null,null,null,null,null,null,null,null,null,null,null,null,null,null,null,null,null,null,null,null,null,null,null,null,null,null,null,null,null,null,null,null,null,null,null,null,null,null,null,null,0,0,0]
[null,"VERIFICA DI PROGETTO \n(VER)",null,{"$f":"D43","v":"Qb.I.20"},{"$f":"MID(E43,25,90)","v":"Verifica della progettazione preliminare"},null,null,null,null,null,null,null,null,null,null,null,null,null,null,null,null,null,null,null,null,null,null,null,null,null,null,null,null,null,null,null,null,null,null,null,null,null,null,null,null,null,null,null,null,null,null,null,null,null,null,null,null,null,null,null,null,null,null,null,null,null,null,null,0,0,0]
[null,null,null,{"$f":"D79","v":"Qb.II.27"},{"$f":"MID(E79,25,90)","v":"Verifica della progettazione definitiva "},null,null,null,null,null,null,null,null,null,null,null,null,null,null,null,null,null,null,null,null,null,null,null,null,null,null,null,null,null,null,null,null,null,null,null,null,null,null,null,null,null,null,null,null,null,null,null,null,null,null,null,null,null,null,null,null,null,null,null,null,null,null,null,0,0,0]
[null,null,null,{"$f":"D88","v":"Qb.III.09"},{"$f":"MID(E88,25,90)","v":"Verifica della progettazione esecutiva"},null,null,null,null,null,null,null,null,null,null,null,null,null,null,null,null,null,null,null,null,null,null,null,null,null,null,null,null,null,null,null,null,null,null,null,null,null,null,null,null,null,null,null,null,null,null,null,null,null,null,null,null,null,null,null,null,null,null,null,null,null,null,null,0,0,0]
[null,null,null,{"$f":"D90","v":"Qb.III.11"},{"$f":"MID(E90,25,90)","v":"Validazione del progetto"},null,null,null,null,null,null,null,null,null,null,null,null,null,null,null,null,null,null,null,null,null,null,null,null,null,null,null,null,null,null,null,null,null,null,null,null,null,null,null,null,null,null,null,null,null,null,null,null,null,null,null,null,null,null,null,null,null,null,null,null,null,null,null,0,0,0]
[null,"Redatto il 01/07/2022",null,"Stampa del","2022-07-09",{"$f":"SUM(F128:F132)","v":3},null,null,null,null,{"$f":"K1","v":"E.01"},{"$f":"L1","v":"E.02"},"E.03","E.04","E.05","E.06","E.07","E.08","E.09","E.10","E.11","E.12","E.13","E.14","E.15","E.16","E.17","E.18","E.19","E.20","E.21","E.22","S.01","S.02","S.03","S.04","S.05","S.06","IA.01","IA.02","IA.03","IA.04","IB.04","IB.05","IB.06","IB.07","IB.08","IB.09","IB.10","IB.11","IB.12","V.01","V.02","V.03","D.01","D.02","D.03","D.04","D.05","T.01","T.02","T.03","P.01","P.02","P.03","P.04","P.05","P.06",null,{"$f":"BR4","v":"SPESE"},{"$f":"BS4","v":"TOTALE"}]
[null,"",null,null,{"$f":"B5","v":"a) Attività propedeutiche alla Progettazione (AP)     "},{"$f":"IF(SUM(F5:F14)>0,1,0)","v":0},null,null,null,null,{"$f":"SUM(K5:K14)","v":0},0,{"$f":"SUM(M5:M14)","v":0},0,0,0,0,0,0,0,0,0,0,0,0,0,0,0,0,0,0,0,0,0,0,0,0,0,0,0,0,0,0,0,0,0,0,0,0,0,0,0,0,0,0,0,0,0,0,0,0,0,0,0,0,0,0,0,0,{"$f":"BQ128*BQ$138","v":0},{"$f":"BQ128+BR128","v":0}]
[null,null,null,null,{"$f":"C15","v":"b.I) \nProgettazione di fattibilità \n(PF)     "},{"$f":"IF(SUM(F15:F39)>0,1,0)","v":0},null,null,null,null,{"$f":"SUM(K15:K39)","v":0},0,{"$f":"SUM(M15:M39)","v":0},{"$f":"SUM(N15:N39)","v":0},0,0,0,0,0,0,0,0,0,0,0,0,0,0,0,0,0,0,0,0,0,0,0,0,0,0,0,0,0,0,0,0,0,0,0,0,0,0,0,0,0,0,0,0,0,0,0,0,0,0,0,0,0,0,0,{"$f":"BQ129*BQ$138","v":0},0]
[null,null,null,null,{"$f":"C44","v":"b.II) \nProgettazione definitiva \n(PD)"},{"$f":"IF(SUM(F44:F75)>0,1,0)","v":1},null,null,null,null,{"$f":"SUM(K44:K75)","v":0},0,{"$f":"SUM(M44:M75)","v":0},{"$f":"SUM(N44:N75)","v":0},0,0,0,0,0,0,0,0,0,0,0,0,0,0,0,61691.092362921605,0,0,0,0,39146.804362354524,0,0,0,25063.494357491527,0,40727.0055486235,0,0,0,0,0,0,0,0,0,0,0,0,0,0,0,0,0,0,0,0,0,0,0,0,0,0,0,166628.39663139117,{"$f":"BQ130*BQ$138","v":41384.526138978807},208012.92277036997]
[null,null,null,null,{"$f":"C80","v":"b.III) \nProgettazione esecutiva \n(PE)"},{"$f":"IF(SUM(F80:F86)>0,1,0)","v":1},null,null,null,null,{"$f":"SUM(K80:K86)","v":0},0,{"$f":"SUM(M80:M86)","v":0},{"$f":"SUM(N80:N86)","v":0},0,0,0,0,0,0,0,0,0,0,0,0,0,0,0,40124.746631569069,0,0,0,0,33441.792091620213,0,0,0,21465.546623847677,0,32913.838156566439,0,0,0,0,0,0,0,0,0,0,0,0,0,0,0,0,0,0,0,0,0,0,0,0,0,0,0,127945.92350360341,{"$f":"BQ131*BQ$138","v":31777.185177650179},159723.10868125359]
[null,null,null,null,{"$f":"C91","v":"c.I) \nDirezione dei lavori \n(DL)"},{"$f":"IF(SUM(F91:F110)>0,1,0)","v":1},null,null,null,null,{"$f":"SUM(K91:K110)","v":0},0,{"$f":"SUM(M91:M110)","v":0},{"$f":"SUM(N91:N110)","v":0},0,0,0,0,0,0,0,0,0,0,0,0,0,0,0,83804.173578168469,0,0,0,0,63941.538764405603,0,0,0,42001.733020243904,0,64402.657297707323,0,0,0,0,0,0,0,0,0,0,0,0,0,0,0,0,0,0,0,0,0,0,0,0,0,0,0,254150.1026605253,{"$f":"BQ132*BQ$138","v":63121.783437944876},317271.88609847019]
[null,null,null,null,"SOLO FASI DI PROGETTAZIONE",{"$f":"IF(SUM(F128:F131)>1,1,0)","v":1},null,null,null,null,{"$f":"SUM(K128:K131)","v":0},0,{"$f":"SUM(M128:M131)","v":0},{"$f":"SUM(N128:N131)","v":0},0,0,0,0,0,0,0,0,0,0,0,0,0,0,0,101815.83899449068,0,0,0,0,72588.596453974737,0,0,0,46529.040981339203,0,73640.843705189938,0,0,0,0,0,0,0,0,0,0,0,0,0,0,0,0,0,0,0,0,0,0,0,0,0,0,0,294574.32013499457,{"$f":"SUM(BR128:BR131)","v":73161.711316628993},367736.03145162354]
[null,null,null,null,"TOTALE GENERALE",{"$f":"IF((F132+SUM(128:133))>1,1,0)","v":1},null,null,null,null,{"$f":"K132+K133","v":0},{"$f":"L132+L133","v":0},0,0,0,0,0,0,0,0,0,0,0,0,0,0,0,0,0,185620.01257265915,0,0,0,0,136530.13521838034,0,0,0,88530.774001583108,0,138043.50100289728,0,0,0,0,0,0,0,0,0,0,0,0,0,0,0,0,0,0,0,0,0,0,0,0,0,0,0,548724.42279551993,{"$f":"BQ134*BQ$138","v":136283.49475457388},{"$f":"BQ134+BQ139","v":685007.91755009384}]
[null,null,null,null,"COLLAUDO (COL)  ",{"$f":"SUM(F112:F116)","v":0},null,null,null,null,{"$f":"SUM(K112:K116)","v":0},0,{"$f":"SUM(M112:M116)","v":0},{"$f":"SUM(N112:N116)","v":0},0,0,0,0,0,0,0,0,0,0,0,0,0,0,0,0,0,0,0,0,0,0,0,0,0,0,0,0,0,0,0,0,0,0,0,0,0,0,0,0,0,0,0,0,0,0,0,0,0,0,0,0,0,0,{"$f":"SUM(K135:BP135)","v":0},{"$f":"BQ135*BQ$138","v":0},{"$f":"BQ135+BR135","v":0}]
[null,null,null,null,{"$f":"B117","v":"SUPPORTO AL RUP \n(RUP)"},{"$f":"SUM(F117:F122)","v":0},null,null,null,null,{"$f":"SUM(K117:K122)","v":0},0,{"$f":"SUM(M117:M122)","v":0},{"$f":"SUM(N117:N122)","v":0},0,0,0,0,0,0,0,0,0,0,0,0,0,0,0,0,0,0,0,0,0,0,0,0,0,0,0,0,0,0,0,0,0,0,0,0,0,0,0,0,0,0,0,0,0,0,0,0,0,0,0,0,0,0,{"$f":"SUM(K136:BP136)","v":0},{"$f":"BQ136*BQ$138","v":0},{"$f":"BQ136+BR136","v":0}]
[null,null,null,null,{"$f":"B123","v":"VERIFICA DI PROGETTO \n(VER)"},{"$f":"SUM(F123:F126)","v":0},null,null,null,null,{"$f":"SUM(K123:K126)","v":0},0,{"$f":"SUM(M123:M126)","v":0},{"$f":"SUM(N123:N126)","v":0},0,0,0,0,0,0,0,0,0,0,0,0,0,0,0,0,0,0,0,0,0,0,0,0,0,0,0,0,0,0,0,0,0,0,0,0,0,0,0,0,0,0,0,0,0,0,0,0,0,0,0,0,0,0,{"$f":"SUM(K137:BP137)","v":0},{"$f":"BQ137*BQ$138","v":0},{"$f":"BQ137+BR137","v":0}]
[null,"Comune di Parabiago (MI)",null,null,"Aliquota spese (distinte)","D",null,null,null,null,null,null,null,null,null,null,null,null,null,null,null,null,null,null,null,null,null,null,null,0.24596874415874481,null,null,null,null,0.24890625476837158,null,null,null,0.25,null,0.25,null,null,null,null,null,null,null,null,null,null,null,null,null,null,null,null,null,null,null,null,null,null,null,null,null,null,null,0.24836418627089141,{"$f":"E138","v":"Aliquota spese (distinte)"}]
[null,"Riqualificazione in PONTE comparto ex Rede (PINQUA, Next Generation EU)",null,null,"Importo delle Spese",null,null,null,null,null,{"$f":"(K134+SUM(K135:K137))*K138","v":0},{"$f":"(L134+SUM(L135:L137))*L138","v":0},{"$f":"(M134+SUM(M135:M137))*M138","v":0},{"$f":"(N134+SUM(N135:N137))*N138","v":0},{"$f":"(O134+SUM(O135:O137))*O138","v":0},{"$f":"(P134+SUM(P135:P137))*P138","v":0},{"$f":"(Q134+SUM(Q135:Q137))*Q138","v":0},{"$f":"(R134+SUM(R135:R137))*R138","v":0},0,{"$f":"(T134+SUM(T135:T137))*T138","v":0},{"$f":"(U134+SUM(U135:U137))*U138","v":0},{"$f":"(V134+SUM(V135:V137))*V138","v":0},0,{"$f":"(X134+SUM(X135:X137))*X138","v":0},{"$f":"(Y134+SUM(Y135:Y137))*Y138","v":0},{"$f":"(Z134+SUM(Z135:Z137))*Z138","v":0},0,{"$f":"(AB134+SUM(AB135:AB137))*AB138","v":0},{"$f":"(AC134+SUM(AC135:AC137))*AC138","v":0},{"$f":"(AD134+SUM(AD135:AD137))*AD138","v":45656.721383227392},0,{"$f":"(AF134+SUM(AF135:AF137))*AF138","v":0},{"$f":"(AG134+SUM(AG135:AG137))*AG138","v":0},{"$f":"(AH134+SUM(AH135:AH137))*AH138","v":0},33983.204620226395,{"$f":"(AJ134+SUM(AJ135:AJ137))*AJ138","v":0},{"$f":"(AK134+SUM(AK135:AK137))*AK138","v":0},{"$f":"(AL134+SUM(AL135:AL137))*AL138","v":0},22132.693500395777,{"$f":"(AN134+SUM(AN135:AN137))*AN138","v":0},{"$f":"(AO134+SUM(AO135:AO137))*AO138","v":34510.875250724319},{"$f":"(AP134+SUM(AP135:AP137))*AP138","v":0},0,{"$f":"(AR134+SUM(AR135:AR137))*AR138","v":0},{"$f":"(AS134+SUM(AS135:AS137))*AS138","v":0},{"$f":"(AT134+SUM(AT135:AT137))*AT138","v":0},0,{"$f":"(AV134+SUM(AV135:AV137))*AV138","v":0},{"$f":"(AW134+SUM(AW135:AW137))*AW138","v":0},{"$f":"(AX134+SUM(AX135:AX137))*AX138","v":0},0,{"$f":"(AZ134+SUM(AZ135:AZ137))*AZ138","v":0},{"$f":"(BA134+SUM(BA135:BA137))*BA138","v":0},{"$f":"(BB134+SUM(BB135:BB137))*BB138","v":0},0,{"$f":"(BD134+SUM(BD135:BD137))*BD138","v":0},{"$f":"(BE134+SUM(BE135:BE137))*BE138","v":0},{"$f":"(BF134+SUM(BF135:BF137))*BF138","v":0},0,{"$f":"(BH134+SUM(BH135:BH137))*BH138","v":0},{"$f":"(BI134+SUM(BI135:BI137))*BI138","v":0},{"$f":"(BJ134+SUM(BJ135:BJ137))*BJ138","v":0},0,{"$f":"(BL134+SUM(BL135:BL137))*BL138","v":0},{"$f":"(BM134+SUM(BM135:BM137))*BM138","v":0},{"$f":"(BN134+SUM(BN135:BN137))*BN138","v":0},0,{"$f":"(BP134+SUM(BP135:BP137))*BP138","v":0},{"$f":"SUM(K139:BP139)","v":136283.49475457388},{"$f":"E139","v":"Importo delle Spese"}]
[null,null,null,null,"Importo TOTALE comprese Spese",null,null,null,null,null,{"$f":"(K134+SUM(K135:K137))+K139","v":0},{"$f":"(L134+SUM(L135:L137))+L139","v":0},0,0,0,0,0,0,0,0,0,0,0,0,0,0,0,0,0,231276.73395588654,0,0,0,0,170513.33983860674,0,0,0,110663.46750197888,0,172554.37625362159,0,0,0,0,0,0,0,0,0,0,0,0,0,0,0,0,0,0,0,0,0,0,0,0,0,0,0,685007.91755009384,{"$f":"E140","v":"Importo TOTALE comprese Spese"}]
[null,"",null,null,null,{"$f":"SUM(F135:F137)","v":0},null,null,null,null,{"$f":"Ripristini!K141","v":10},{"$f":"Ripristini!L141","v":10},{"$f":"Ripristini!M141","v":10},{"$f":"Ripristini!N141","v":10},{"$f":"Ripristini!O141","v":10},{"$f":"Ripristini!P141","v":10},{"$f":"Ripristini!Q141","v":10},{"$f":"Ripristini!R141","v":10},{"$f":"Ripristini!S141","v":10},{"$f":"Ripristini!T141","v":10},{"$f":"Ripristini!U141","v":10},{"$f":"Ripristini!V141","v":10},{"$f":"Ripristini!W141","v":10},{"$f":"Ripristini!X141","v":10},{"$f":"Ripristini!Y141","v":10},{"$f":"Ripristini!Z141","v":10},{"$f":"Ripristini!AA141","v":10},{"$f":"Ripristini!AB141","v":10},{"$f":"Ripristini!AC141","v":10},{"$f":"Ripristini!AD141","v":10},{"$f":"Ripristini!AE141","v":10},{"$f":"Ripristini!AF141","v":10},{"$f":"Ripristini!AG141","v":11},{"$f":"Ripristini!AH141","v":12},{"$f":"Ripristini!AI141","v":11},{"$f":"Ripristini!AJ141","v":12},{"$f":"Ripristini!AK141","v":12},{"$f":"Ripristini!AL141","v":12},{"$f":"Ripristini!AM141","v":13},{"$f":"Ripristini!AN141","v":13},{"$f":"Ripristini!AO141","v":13},{"$f":"Ripristini!AP141","v":13},{"$f":"Ripristini!AQ141","v":14},{"$f":"Ripristini!AR141","v":14},{"$f":"Ripristini!AS141","v":14},{"$f":"Ripristini!AT141","v":14},{"$f":"Ripristini!AU141","v":14},{"$f":"Ripristini!AV141","v":14},{"$f":"Ripristini!AW141","v":14},{"$f":"Ripristini!AX141","v":14},{"$f":"Ripristini!AY141","v":14},{"$f":"Ripristini!AZ141","v":15},{"$f":"Ripristini!BA141","v":15},{"$f":"Ripristini!BB141","v":15},{"$f":"Ripristini!BC141","v":16},{"$f":"Ripristini!BD141","v":16},{"$f":"Ripristini!BE141","v":16},{"$f":"Ripristini!BF141","v":16},{"$f":"Ripristini!BG141","v":16},{"$f":"Ripristini!BH141","v":17},{"$f":"Ripristini!BI141","v":17},{"$f":"Ripristini!BJ141","v":17},{"$f":"Ripristini!BK141","v":18},{"$f":"Ripristini!BL141","v":18},{"$f":"Ripristini!BM141","v":18},{"$f":"Ripristini!BN141","v":18},{"$f":"Ripristini!BO141","v":18},{"$f":"Ripristini!BP141","v":18}]
[null,null,null,{"$f":"D25","v":"Qb.I.11"},"(Geologo nel progetto di fattibilità)",{"$f":"F25","v":0},null,null,null,null,{"$f":"K25","v":0},0,0,0,0,0,0,0,0,0,0,0,0,0,0,0,0,0,0,0,0,0,0,0,0,0,0,0,0,0,0,0,{"$f":"AQ25","v":0},0,0,0,0,0,0,0,0,0,0,0,0,0,0,0,0,0,0,0,0,0,0,0,0,0,0,0,0]
[null,null,null,{"$f":"D56","v":"Qb.II.13"},"(Geologo nel progetto definitivo)",{"$f":"F56","v":1},null,null,null,null,{"$f":"K56","v":0},0,0,0,0,0,0,0,0,0,0,0,0,0,0,0,0,0,0,2971.95020837833,0,0,0,0,2323.2572656321558,0,0,0,1101.9546883620803,0,1689.663855488523,0,0,0,0,0,0,0,0,0,0,0,null,{"$f":"BB56","v":0},0,0,0,0,0,0,0,0,0,0,0,0,0,0,8086.826017861089,2008.4779634403426,10095.303981301431]
[null,null,null,{"$f":"D96","v":"Qc.I.05.01"},"(Geologo in Direzione dei Lavori)",{"$f":"F96","v":0},null,null,null,null,{"$f":"K96","v":0},{"$f":"L96","v":0},0,0,0,0,0,0,0,0,0,0,0,0,0,0,0,0,0,0,0,0,0,0,0,0,0,0,0,0,0,0,0,0,0,0,0,0,0,0,0,0,0,0,0,0,0,0,0,0,0,0,0,0,0,0,0,0,{"$f":"BQ96","v":0},{"$f":"BR96","v":0},{"$f":"BS96","v":0}]
[null,null,null,{"$f":"MAX(BQ142:BQ144)","v":8086.826017861089},"Prestazioni da GEOLOGO",{"$f":"IF(SUM(F142:F144)>1,1,0)","v":0},{"$f":"SUM(F142:F144)","v":1},null,null,null,{"$f":"SUM(K142:K144)","v":0},{"$f":"SUM(L142:L144)","v":0},0,0,0,0,0,0,0,0,0,0,0,0,0,0,0,0,0,2971.95020837833,0,0,0,0,2323.2572656321558,0,0,0,1101.9546883620803,0,1689.663855488523,0,0,0,0,0,0,0,0,0,0,0,0,0,0,0,0,0,0,0,0,0,0,0,0,0,0,0,{"$f":"SUM(BQ142:BQ144)","v":8086.826017861089},{"$f":"SUM(BR142:BR144)","v":2008.4779634403426},{"$f":"SUM(BS142:BS144)","v":10095.303981301431}]
[null,null,null,{"$f":"D86","v":"Qb.III.07"},{"$f":"E86","v":"Piano di Sicurezza e Coordinamento (artt. 91 e 100 d.lgs. n. 81/2008)"},{"$f":"F86","v":1},null,null,null,null,{"$f":"K86","v":0},{"$f":"L86","v":0},0,0,0,0,0,0,0,0,0,0,0,0,0,0,0,0,0,9786.5238443307226,0,0,0,0,7515.0096915634012,0,0,0,4991.9875782917379,0,7654.3809533806652,0,0,0,0,0,0,0,0,0,0,0,0,0,0,0,0,0,0,0,0,0,0,0,0,0,0,0,29947.902067566523,{"$f":"BR86","v":7437.9863275315056},{"$f":"BS86","v":37385.888395098031}]
[null,null,null,{"$f":"D110","v":"Qc.I.12"},{"$f":"E110","v":"Coordinamento della sicurezza in esecuzione (art. 92 d.lgs. n. 81/2008)"},{"$f":"F110","v":1},null,null,null,null,{"$f":"K110","v":0},{"$f":"L110","v":0},0,0,0,0,0,0,0,0,0,0,0,0,0,0,0,0,0,24466.309246250388,0,0,0,0,18787.523948952581,0,0,0,12479.96875976332,0,19135.952098303758,0,0,0,0,0,0,0,0,0,0,0,0,0,0,0,0,0,0,0,0,0,0,0,0,0,0,0,74869.754053270037,{"$f":"BR110","v":18594.965541742185},{"$f":"BS110","v":93464.719595012226}]
[null,null,{"$f":"MAX(BP143:BP146)","v":0},{"$f":"MAX(BQ146:BQ147)","v":74869.754053270037},"Prestazioni da Coordinatore ex d.lgs. n. 81 del 2008",{"$f":"IF(SUM(F146:F147)>1,1,0)","v":1},{"$f":"SUM(F146:F147)","v":2},null,null,null,{"$f":"K146+K147","v":0},0,0,0,0,0,0,0,0,0,0,0,0,0,0,0,0,0,0,34252.833090581109,0,0,0,0,26302.533640515983,0,0,0,17471.956338055057,0,26790.333051684422,0,{"$f":"AQ146+AQ147","v":0},0,0,0,0,0,0,0,0,0,0,0,0,0,0,0,0,0,0,0,0,0,0,0,0,0,104817.65612083656,{"$f":"BR147+BR146","v":26032.951869273689},{"$f":"BS147+BS146","v":130850.60799011026}]
[0,null,null,{"$f":"D95","v":"Qc.I.05"},"Ufficio di DL: Direttori operativi",{"$f":"SUM(K149:BP149)","v":0},null,null,null,null,null,null,null,null,null,null,null,null,null,null,null,null,null,null,null,null,null,null,null,null,null,null,null,null,null,null,null,null,null,null,null,null,null,null,null,null,null,null,null,null,null,null,null,null,null,null,null,null,null,null,null,null,null,null,null,null,null,null,{"$f":"BQ95","v":0},{"$f":"E149","v":"Ufficio di DL: Direttori operativi"}]
[0,null,null,"QcI.05.01","Ufficio di DL: Direttori op. \"Geologi\"",{"$f":"SUM(K150:BP150)","v":0},null,null,null,null,null,null,null,null,null,null,null,null,null,null,null,null,null,null,null,null,null,null,null,null,null,null,null,null,null,null,null,null,null,null,null,null,null,null,null,null,null,null,null,null,null,null,null,null,null,null,null,null,null,null,null,null,null,null,null,null,null,null,{"$f":"BQ96","v":0},{"$f":"E150","v":"Ufficio di DL: Direttori op. \"Geologi\""}]
[0,null,null,{"$f":"D102","v":"Qc.I.06"},"Ufficio di DL: Ispettori di cantiere",0,null,null,null,null,null,null,null,null,null,null,null,null,null,null,null,null,null,null,null,null,null,null,null,null,null,null,null,null,null,null,null,null,null,null,null,null,null,null,null,null,null,null,null,null,null,null,null,null,null,null,null,null,null,null,null,null,null,null,null,null,null,null,{"$f":"BQ102","v":0},{"$f":"E151","v":"Ufficio di DL: Ispettori di cantiere"}]

{"sheet":"F6","index":2,"n_rows":78,"n_cols":28,"rows_kept":78,"cut":false,"hidden":true,"merged":[[4,1,51,1],[4,3,4,4],[5,3,5,4],[7,3,7,4],[68,1,71,1],[14,3,14,4],[16,3,16,4],[17,3,17,4],[18,3,18,4],[19,3,19,4],[21,3,21,4],[50,3,50,4],[23,3,23,4],[24,3,24,4],[34,3,34,4],[37,3,37,4],[72,1,76,1],[52,1,67,1],[53,3,53,4],[54,3,54,4],[56,3,56,4],[57,3,57,4],[58,3,58,4],[64,3,64,4],[66,3,66,4],[67,3,67,4],[47,3,47,4],[48,3,48,4],[1,9,1,11],[2,6,2,7],[2,9,2,10],[39,3,39,4],[40,3,40,4],[41,3,41,4],[43,3,43,4],[44,3,44,4],[1,1,3,1],[1,2,3,2],[1,3,3,3],[1,4,3,4],[1,6,1,8]]}
[null,null,null,null,"Compensi orari:",null,66,45,30,{"$f":"J78","v":594},{"$f":"K78","v":585},{"$f":"L78","v":480},{"$f":"M78","v":1659}]
[null,"FASI",null,"Descrizione delle singole prestazioni",null,null,"ore stimate a vacazione ",null,null,"importo stimato a vacazione",null,null,"Importo"]
[null,null,null,null,null,null,"professionisti iscritti",null,"aiutanti di","professionisti iscritti",null,"aiutanti di","totale "]
[null,null,null,null,null,null,"incaricato","iscritti","concetto","incaricato","iscritti","concetto","vacazioni",null,null,null,null,null,null,{"$f":"IF(T3>0,0.03+10/T3^0.4,0)","v":0},0,0,0,0,0,0,0,0]
[null,"Progettazione",1,"Rilievi delle aree / dei fabbricati da acquisire o espropriare o alienare (art. 21, co. 2, lett. a), d.P.R. 207/2010)",null,null,2,3,4,{"$f":"G5*$G$1","v":132},{"$f":"H5*$H$1","v":135},{"$f":"I5*$I$1","v":120},{"$f":"SUM(J5:L5)","v":387}]
[null,null,2,"Rilievo degli arredi e attrezzature fisse o semifisse da riutilizzare",null,null,5,6,7,330,270,210,810]
[null,null,3,"Rilievo degli impianti interni e pertinenziali",null,null,2,4,5,132,180,150,462]
[null,null,4,"Rilievo delle infrastrutture a rete sopra/sottosuolo    (artt. 18, co. 1, lett.b) e 19, co. 1, lett. f), d.P.R. 207/2010)",null,null,null,0,null,0,0,0,0]
[null,null,5,"Frazionamenti catastali preventivi",null,null,null,null,null,0,0,0,0]
[null,null,6,"Information memorandum  (PPP)",null,null,null,null,null,0,0,0,0]
[null,null,7,"Fattibilità tecnica","(artt. 11 e 14 d.P.R. 207/2010)",null,null,null,null,0,0,0,0]
[null,null,8,"Fattibilità e sostenibilità ambientale (PPP)","(artt. 11 e 14 d.P.R. 207/2010)",null,null,null,null,0,0,0,0]
[null,null,9,"Fattibilità e sostenibilità economica (PPP)","(artt. 11 e 14 d.P.R. 207/2010)",null,null,null,null,0,0,0,0]
[null,null,10,"Indagine di mercato (PPP)",null,null,null,null,null,0,0,0,0]
[null,null,11,"Variante allo strumento urbanistico  con procedura ordinaria /semplificata (artt. 17 e 19 d.P.R. 327/2001) ",null,null,null,null,null,0,0,0,0]
[null,null,12,"Indagini invasive del terreno ",null,null,null,null,null,0,0,0,0]
[null,null,13,"Individuazione criteri e elementi dell’offerta   (solo offerta di qualità/prezzo)",null,null,null,null,null,0,0,0,0]
[null,null,14,"Ripartizione categorie dei lavori  ",null,null,null,null,null,0,0,0,0]
[null,null,15,"Ripartizione classi/categorie di progettazione ",null,null,null,null,null,0,0,0,0]
[null,null,16,"Relazione indagine archeologica  (solo art. 53, co. 2, lett.  b) e c) e concessioni)",null,null,null,null,null,0,0,0,0]
[null,null,17,"Verifica interesse archeologico preliminare ","(art. 96, lett. a), d.lgs. 163/2006)",null,null,null,null,0,0,0,0]
[null,null,18,"Piano economico finanziario",null,null,null,null,null,0,0,0,0]
[null,null,19,"Indagini invasive del terreno",null,null,null,null,null,0,0,0,0]
[null,null,20,"Ripartizione categorie dei lavori  (artt. 32, co. 7, lett. b), 43, co. 6 e 7, d.P.R. 207/2010)",null,null,null,null,null,0,0,0,0]
[null,null,21,"Lista dei lavori e delle forniture per l’offerta di prezzi unitari  ",null,null,null,null,null,0,0,0,0]
[null,null,22,"Censimento e progetto di risoluzione delle interferenze","(art. 26, co. 1, lett. l), d.P.R. 207/2010)",null,null,null,0,0,0,0,0]
[null,null,23,"Assenso A.S.L.  (igienico-sanitario)","(art. 5, co. 3, lett. a), d.P.R. 380/2001)",null,null,null,null,0,0,0,0]
[null,null,24,"Assenso A.R.P.A. (ambientale)",null,null,null,null,null,0,0,0,0]
[null,null,25,"Verifica interesse archeologico definitivo/esecutivo ","(art. 96, lettera b), d.lgs. 163/ 2006)",null,null,null,null,0,0,0,0]
[null,null,26,"Autorizzazione Soprintendenza ","(parte II d.lgs. n. 42 del 2004)",null,null,null,null,0,0,0,0]
[null,null,27,"Autorizzazione paesaggistica o decreto in sub-delega ","(parte III d.lgs. n. 42 del 2004)",null,null,null,null,0,0,0,0]
[null,null,28,"Autorizzazione vincolo idrogeologico","(art. 5, co. 3, lett. i), d.P.R. 380/2001)",null,null,null,null,0,0,0,0]
[null,null,29,"Assenso Autorità di Bacino ",null,null,null,null,null,0,0,0,0]
[null,null,30,"Assenso Servizio Forestale",null,null,null,null,null,0,0,0,0]
[null,null,31,"Assenso Provincia: -strade  -urbanistica -____________",null,null,null,null,null,0,0,0,0]
[null,null,32,"Assenso:  -ANAS -concessionaria _____________ ","(art. 5, co. 3, lett. l), d.P.R. 380/2001)",null,null,null,null,0,0,0,0]
[null,null,33,"Assenso Ferrovie: -RFI   -FS  -________________ ","(artt. 37, 58 e 59, d.P.R. 753/1980)",null,null,null,null,{"$f":"G37*$G$1","v":0},{"$f":"H37*$H$1","v":0},{"$f":"I37*$I$1","v":0},{"$f":"SUM(J37:L37)","v":0}]
[null,null,34,"Relazione e pratica fonti rinnovabili, risparmio e uso di energia (art. 125 d.P.R. 380/2001)",null,null,null,null,null,0,0,0,0]
[null,null,35,"Protezione scariche atmosferiche ","(d.P.R. n. 462/2001)",null,null,null,null,0,0,0,0]
[null,null,36,"SCIA per parere conformità in materia antincendio VV.FF.  (artt. 3, 4 e 8, d.P.R. 151/2011)",null,null,null,null,null,0,0,0,0]
[null,null,37,"Pratica per sdemanializzazione o per concessione demaniale",null,null,null,null,null,0,0,0,0]
[null,null,38,"Verifica e attestazione sul progetto barriere architettoniche (art. 7.3 d.m. 236/1989, art. 21 d.P.R. 503/1996)",null,null,null,null,null,0,0,0,0]
[null,null,39,"Denuncia o Autorizzazione per zona sismica ","(art. 93 d.P.R. n. 380 del 2001)",null,null,null,null,0,0,0,0]
[null,null,40,"Partecipazione a conferenza di servizi (art. 58 d.P.R. 207/2010, art. 14-bis legge 241/1990)",null,null,null,null,null,0,0,0,0]
[null,null,41,"Progetto ricollocazione arredamenti e attrezzature fissi o semifissi",null,null,null,null,null,0,0,0,0]
[null,null,42,"Assistenza e partecipazione alla verifica delle offerte anomale","(artt. 53, co. 2, lett. b) e 86 d.lgs. 163/2006)",null,null,0,0,0,0,0,0]
[null,null,43,"Ripartizione categorie dei lavori","(art. 43, co. 6 e 7, d.P.R. 207/2010)",null,null,null,null,0,0,0,0]
[null,null,44,"Lista dei lavori e delle forniture per l’offerta di prezzi unitari (art. 119 del d.P.R. 207/2010)",null,null,null,null,null,0,0,0,0]
[null,null,45,"Pareri sulle riserve dell’esecutore motivate sulla progettazione",null,null,null,null,null,0,0,0,0]
[null,null,46,"Pareri sulle varianti in corso d’opera",null,null,null,null,null,0,0,0,0]
[null,null,47,"Progetto ricollocazione arredamenti e attrezzature fissi o semifissi",null,null,null,null,null,0,0,0,0]
[null,null,48,"Assistenza e partecipazione alla verifica delle offerte anomale",null,null,null,null,null,0,0,0,0]
[null,"Direzione dei lavori",49,"Pareri e proposte di controdeduzioni alle riserve dell’esecutore",null,null,null,null,null,0,0,0,0]
[null,null,50,"Controllo regolarità contratti di subappalto  ",null,null,null,null,null,0,0,0,0]
[null,null,51,"Verifica POS e altre attività imprese e lavoratori autonomi",null,null,null,null,null,0,0,0,0]
[null,null,52,"Rapporti con gli organismi di ispezione e vigilanza",null,null,null,null,null,0,0,0,0]
[null,null,53,"Rapporti con i gestori delle reti per gli allacciamenti",null,null,null,null,null,0,0,0,0]
[null,null,54,"Piano lavoro rimozione amianto d.lgs. n. 257 del 2006",null,null,null,null,null,0,0,0,0]
[null,null,55,"Autorizzazione emissioni in atmosfera d.lgs. n. 152 del 2006",null,null,null,null,null,0,0,0,0]
[null,null,56,"Autorizzazioni allo scarico d.lgs. n. 152 del 2006",null,null,null,null,null,0,0,0,0]
[null,null,57,"Certificato prevenzione incendi dei VV.FF.","(artt. 4, co. 3, d.P.R. 151/2011)",null,null,null,null,0,0,0,0]
[null,null,58,"Verifica e attestazione finale d.P.R. n. 503 del 1996","(art. 11 d.m. 236/1989)",null,null,null,null,0,0,0,0]
[null,null,59,"Certificato di agibilità ","(artt. 24 e 25 d.P.R. 380/2001)",null,null,null,null,0,0,0,0]
[null,null,60,"Pratiche di accatastamento",null,null,null,null,null,0,0,0,0]
[null,null,61,"Frazionamenti catastali e riconfinamenti (posteriori all’esecuzione)",null,null,null,null,null,0,0,0,0]
[null,null,62,"Redazione elaborati ex built",null,null,null,null,null,0,0,0,0]
[null,null,63,"Definizione delle ripartizioni dei lavori eseguiti ai fini dell’allegato B",null,null,null,null,null,0,0,0,0]
[null,null,64,"Assistenza ricollocazione arredamenti e attrezzature fissi o semifissi",null,null,null,null,null,0,0,0,0]
[null,"Collaudi",65,"Supplemento per collaudo in corso d'opera",null,null,null,null,null,{"$f":"G69*$G$1","v":0},{"$f":"H69*$H$1","v":0},{"$f":"I69*$I$1","v":0},{"$f":"SUM(J69:L69)","v":0}]
[null,null,66,"Supplemento per commissari collaudatori oltre il primo ",null,null,null,null,null,0,0,0,0]
[null,null,67,"Supplemento per assistenti ai collaudatori",null,null,null,null,null,0,0,0,0]
[null,null,68,null,null,null,null,null,null,0,0,0,0]
[null,"Monitoraggi",69,"Monitoraggio delle strutture",null,null,null,null,null,0,0,0,0]
[null,null,70,"Monitoraggio degli impianti _______________",null,null,null,null,null,0,0,0,0]
[null,null,71,"Monitoraggio degli impianti _______________",null,null,null,null,null,0,0,0,0]
[null,null,72,"Monitoraggio dei consumi energetici",null,null,null,null,null,0,0,0,0]
[null,null,73,"Monitoraggio delle emissioni",null,null,null,null,null,0,0,0,0]
[null,null,null,null,null,null,{"$f":"SUM(G5:G77)","v":9},13,16,594,585,480,1659]

{"sheet":"X-A","index":3,"n_rows":20,"n_cols":16,"rows_kept":20,"cut":false,"hidden":true,"merged":[[1,10,1,12],[1,13,1,15]]}
[null,null,"Offerte CASUALI",null,null,"Variabili MOBILI",null,null,null,null,"variabili STANDARD"]
[null,null,"R max",{"$f":"MAX(D5:D20)","v":34.504772186279297},"interpol.","X","Alfa",null,null,null,"X",null,null,"Alfa"]
[null,null,"R med",{"$f":"IF(D2>0,AVERAGE(D5:D20),1)","v":20.172577023506165},"lineare",0.8,0.5,null,null,null,0.8,0.85,0.9,0.4,0.5,0.6]
[null,null,"base gara",0,0,0,0,null,null,null,0,0,0,0,0,0]
[null,1,"Offerta 1",0.56070566177368164,{"$f":"D5/D$2","v":1.6250090241043361E-2},2.2236352427705875E-2,0.12747584179382132,null,null,null,null,0.1]
[null,2,"Offerta 2",1.814110279083252,{"$f":"D6/D$2","v":5.257563415545826E-2},7.1943620795292082E-2,0.2292937726050541,null,null,null,null,0.2]
[null,3,"Offerta 3",4,0.11592599361054719,0.15863119596378297,0.34047906486382856,null,null,null,null,0.3]
[null,4,"Offerta 4",11.582498550415039,0.33567816323739647,0.45933639932528009,0.5793773927565663,null,null,null,null,0.4]
[null,5,"Offerta 5",12.077919960021973,0.35003621802855189,0.47898372200328287,0.59163858733905439,null,null,null,null,0.5]
[null,6,"Offerta 6",14.941446304321289,0.43302550220177088,0.59254487417078283,0.65804673253635326,null,null,null,null,0.6]
[null,7,"Offerta 7",16.561307907104492,0.479971518655325,0.65678502000711025,0.6927997680826149,null,null,null,null,0.7]
[null,8,"Offerta 8",21.336959838867188,0.61837706748725485,0.8162484938512401,0.7863695489318332,null,null,null,null,0.8]
[null,9,"Offerta 9",23.180744171142578,0.67181270016790084,0.84197775996852897,0.8196418121154514,null,null,null,null,0.86]
[null,10,"Offerta 10",28.221899032592773,0.81791292173246444,0.91232504120865598,0.90438538341376595,null,null,null,null,0.88]
[null,11,"Offerta 11",28.361516952514648,0.82195925825565974,0.91427335292469003,0.90661968777192337,null,null,null,null,0.9]
[null,12,"Offerta 12",30.428943634033203,0.88187638132365842,0.94312345775290995,0.93908273401423925,null,null,null,null,0.91999999999999993]
[null,13,"Offerta 13",30.989604949951172,0.89812518635535521,0.95094726010680053,0.94769466937160474,null,null,null,null,0.94]
[null,14,"Offerta 14",31.61920166015625,0.91637184240646907,0.95973302806234284,0.95727312842598322,null,null,null,null,0.96]
[null,15,"Offerta 15",32.579601287841797,0.9442056626821308,0.97313501720343276,0.97170245583827297,null,null,null,null,0.98]
[null,16,"Offerta 16",34.504772186279297,1,1,1,null,null,null,null,1]